Workbook

Sheet LISTADO
A1: LISTADO DE FORMATOS
A2: ‘‘MEJORAMIENTO DE LAS VÍAS DE CIRCULACIÓN INTERNA, SEÑALIZACIÓN Y ORNATO EN LA SEDE CENTRAL DE LA UNIVERSIDAD NACIONAL DE EDUCACIÓN ENRIQUE GUZMÁN Y VALLE’’ – SALDO DE OBRA – 1ERA ETAPA
A3: Nº FORMATO | C3: NOMBRE DEL FORMATO | G3: 22
A4: 01 | B4: IDENTIFICACION ANALISIS Y RESPUESTA A LOS RIESGOS
B5: =+'F-3. ASIGNACION RIESGOS '!A9 -> VIAS-UNE-001 | C5: =+'F-3. ASIGNACION RIESGOS '!B9 -> ERRORES, OMISIONES O DEFICIENCIAS EN LOS DISEÑOS
B6: =+'F-3. ASIGNACION RIESGOS '!A10 -> VIAS-UNE-002 | C6: =+'F-3. ASIGNACION RIESGOS '!B10 -> EQUIPOS Y/O MAQUINARIA NO CUMPLE CON ESPECIFICACIONES TECNICAS O NO ES APROPIADA PARA EJECUCION DE PARTIDAS SEGÚN CALIFICACION DE LA SUPERVISION
B7: =+'F-3. ASIGNACION RIESGOS '!A11 -> VIAS-UNE-003 | C7: =+'F-3. ASIGNACION RIESGOS '!B11 -> DEFICIENCIAS ESTRUCTURALES EN LA CONSTRUCCION DE LAS VIAS PEATONALES Y CICLOVIAS
B8: =+'F-3. ASIGNACION RIESGOS '!A12 -> VIAS-UNE-004 | C8: =+'F-3. ASIGNACION RIESGOS '!B12 -> DAÑOS A INFRAESTRUCTURA EXISTENTE DE LA ENTIDAD O PROPIEDAD DE TERCEROS.
B9: =+'F-3. ASIGNACION RIESGOS '!A13 -> VIAS-UNE-005 | C9: =+'F-3. ASIGNACION RIESGOS '!B13 -> DEFICIENCIA EN TRABAJOS DE PLAN DE CONTINGENCIA Y ADECUACION A LA NORMA GE.030 CALIDAD DE LA CONSTRUCCION, EN CONCORDANCIA CON LA PROGRAMACION DE OBRA
B10: =+'F-3. ASIGNACION RIESGOS '!A14 -> VIAS-UNE-006 | C10: =+'F-3. ASIGNACION RIESGOS '!B14 -> RIESGO DE EXCESO DE RUIDO, REMANENTES DE ACERO CORRUGADO FY=4200 KG/CM2 GRADO 60 Y CONTAMINACION DE POLVO AL REALIZAR TRABAJOS DE CAMPO
B11: =+'F-3. ASIGNACION RIESGOS '!A15 -> VIAS-UNE-007 | C11: =+'F-3. ASIGNACION RIESGOS '!B15 -> RIESGO DE ATRASOS POR DEMORA EN ATENCION DE CONSULTAS SOBRE OCURRENCIAS DE OBRA
B12: =+'F-3. ASIGNACION RIESGOS '!A16 -> VIAS-UNE-008 | C12: =+'F-3. ASIGNACION RIESGOS '!B16 -> RIESGO DE ACCIDENTES GRAVES Y MUY GRAVES PRODUCTO DE LA EJECUCION DE LA OBRA
B13: =+'F-3. ASIGNACION RIESGOS '!A17 -> VIAS-UNE-009 | C13: =+'F-3. ASIGNACION RIESGOS '!B17 -> DEFICIENTE GESTION OPERATIVA Y ADMINISTRATIVA DE LA OBRA
B14: =+'F-3. ASIGNACION RIESGOS '!A18 -> VIAS-UNE-010 | C14: =+'F-3. ASIGNACION RIESGOS '!B18 -> RIESGO DE CONTAMINACION DE SUELO, AIRE Y AGUA
B15: =+'F-3. ASIGNACION RIESGOS '!A19 -> VIAS-UNE-011 | C15: =+'F-3. ASIGNACION RIESGOS '!B19 -> CONCRETO NO CUMPLE CON RESISTENCIA A LA COMPRESION ESPECIFICADA
B16: =+'F-3. ASIGNACION RIESGOS '!A20 -> VIAS-UNE-012 | C16: =+'F-3. ASIGNACION RIESGOS '!B20 -> DELINCUENCIA Y/O VANDALISMO
B17: =+'F-3. ASIGNACION RIESGOS '!A21 -> VIAS-UNE-013 | C17: =+'F-3. ASIGNACION RIESGOS '!B21 -> USO DE DEPOSITOS DE MATERIAL EXCEDENTES (DME) NO AUTORIZADOS O PROPIEDAD DE TERCEROS
B18: =+'F-3. ASIGNACION RIESGOS '!A22 -> VIAS-UNE-014 | C18: =+'F-3. ASIGNACION RIESGOS '!B22 -> CAMBIOS EN LA NORMATIVA QUE RESULTE DE APLICACIÓN EN LA EJECUCION DE LA OBRA
B19: =+'F-3. ASIGNACION RIESGOS '!A23 -> VIAS-UNE-015 | C19: =+'F-3. ASIGNACION RIESGOS '!B23 -> DEBIDO A LAS OCURRENCIAS DE DESASTRES NATURALES PODRIA OCURRIR DAÑOS IRREPARABLES EN LA OBRA A EJECUTAR, LO QUE CONLLEVARIA A AFECTAR EL COSTO DEL PROYECTO Y PERDIDAS DE MATERIALES DE CONSTRUCCION Y BIENES
A20: 02 | B20: MATRIZ DE PROBABILIDAD E IMPACTO
A21: 03 | B21: ASIGNACIÓN DE RIESGOS

Sheet 001
A1: Anexo N° 01 | J1: Regresar
A2: Formato para identificar, analizar y dar respuesta a riesgos
A3: 1 | B3: NÚMERO Y FECHA DEL DOCUMENTO | D3: Número | F3: 01
D4: Fecha | F4: ABRIL DEL 2022
A5: 2 | B5: DATOS GENERALES DEL PROYECTO | D5: Nombre del Proyecto | F5: =+LISTADO!A2 -> ‘‘MEJORAMIENTO DE LAS VÍAS DE CIRCULACIÓN INTERNA, SEÑALIZACIÓN Y ORNATO EN LA SEDE CENTRAL DE LA UNIVERSIDAD NACIONAL DE EDUCACIÓN ENRIQUE GUZMÁN Y VALLE’’ – SALDO DE OBRA – 1ERA ETAPA
D6: Ubicación Geográfica | F6: DISTRITO CHOSICA, PROVINCIA LURIGANCHO, DEPARTAMENTO LIMA
A7: 3 | B7: IDENTIFICACIÓN DE RIESGOS
B8: 3.1 | C8: CÓDIGO DE RIESGO | E8: =+'F-3. ASIGNACION RIESGOS '!A9 -> VIAS-UNE-001
B9: 3.2 | C9: DESCRIPCIÓN DEL RIESGO | E9: =+'F-3. ASIGNACION RIESGOS '!B9 -> ERRORES, OMISIONES O DEFICIENCIAS EN LOS DISEÑOS
B10: 3.3 | C10: CAUSA(S) GENERADORA(S) | E10: Causa N° 1 | G10: DISEÑOS EFECTUADOS A PARTIR DE INFORMACION TECNICA DEFICIENTE
E11: Causa N° 2 | G11: PROFESIONALES RESPONSABLES NO CAPACITADOS EN LA ESPECIALIDAD
E12: Causa N° 3 | G12: ESTUDIOS BASICOS DEFICIENTES
A13: 4 | B13: ANÁLISIS CUALITATIVO DE RIESGOS
B14: 4.1 | C14: PROBABILIDAD DE OCURRENCIA | F14: 4.2 | G14: IMPACTO EN LA EJECUCIÓN DE LA OBRA
C15: Muy baja | D15: =+'[3]F-2. MATRIZ PROB E IMPACTO.'!C11 -> 0.1 | G15: Muy bajo | H15: =+'[3]F-2. MATRIZ PROB E IMPACTO.'!D12 -> 0.05
C16: Baja | D16: =+'[3]F-2. MATRIZ PROB E IMPACTO.'!C10 -> 0.3 | G16: Bajo | H16: =+'[3]F-2. MATRIZ PROB E IMPACTO.'!E12 -> 0.1
C17: Moderada | D17: =+'[3]F-2. MATRIZ PROB E IMPACTO.'!C9 -> 0.5 | E17: X | G17: Moderado | H17: =+'[3]F-2. MATRIZ PROB E IMPACTO.'!F12 -> 0.2
C18: Alta | D18: =+'[3]F-2. MATRIZ PROB E IMPACTO.'!C8 -> 0.7 | G18: Alto | H18: =+'[3]F-2. MATRIZ PROB E IMPACTO.'!G12 -> 0.4 | I18: X | N18: =0.1*0.4 -> 0.04
C19: Muy alta | D19: =+'[3]F-2. MATRIZ PROB E IMPACTO.'!C7 -> 0.9 | G19: Muy alto | H19: =+'[3]F-2. MATRIZ PROB E IMPACTO.'!H12 -> 0.8
C20: =IFERROR(INDEX(C15:E19,MATCH(IF(E15>0,E15,IF(E16>0,E16,IF(E17>0,E17,IF(E18>0,E18,IF(E19>0,E19,""))))),E15:E19,0),1),"") -> Moderada | E20: =IFERROR(INDEX(D15:E19,MATCH(IF(E15>0,E15,IF(E16>0,E16,IF(E17>0,E17,IF(E18>0,E18,IF(E19>0,E19,""))))),E15:E19,0),1),"") -> 0.5 | G20: =IFERROR(INDEX(G15:I19,MATCH(IF(I15>0,I15,IF(I16>0,I16,IF(I17>0,I17,IF(I18>0,I18,IF(I19>0,I19,""))))),I15:I19,0),1),"") -> Alto | I20: =IFERROR(INDEX(H15:I19,MATCH(IF(I15>0,I15,IF(I16>0,I16,IF(I17>0,I17,IF(I18>0,I18,IF(I19>0,I19,""))))),I15:I19,0),1),"") -> 0.4
B21: 4.3 | C21: PRIORIZACIÓN DEL RIESGO
C22: Puntuación del Riesgo =Probabilidad x Impacto | E22: =+IFERROR(ROUND(E20*I20,3),0) -> 0.2 | F22: Prioridad del Riesgo | H22: =+IF(E22=0,"",IF(AND(E22>=MIN('F-2. MATRIZ PROB E IMPACTO.'!F7:H7,'F-2. MATRIZ PROB E IMPACTO.'!G8:H8,'F-2. MATRIZ PROB E IMPACTO.'!G9:H9,'F-2. MATRIZ PROB E IMPACTO.'!H10),E22<=MAX('F-2. MATRIZ PROB E IMPACTO.'!F7:H7,'F-2. MATRIZ PROB E IMPACTO.'!G8:H8,'F-2. MATRIZ PROB E IMPACTO.'!G9:H9,'F-2. MATRIZ PROB E IMPACTO.'!H10)),"Alta Prioridad",IF(AND(E22>=MIN('F-2. MATRIZ PROB E IMPACTO.'!E7:E8,'F-2. MATRIZ PROB E IMPACTO.'!F8:F10,'F-2. MATRIZ PROB E IMPACTO.'!G10,'F-2. MATRIZ PROB E IMPACTO.'!H11),E22<=MAX('F-2. MATRIZ PROB E IMPACTO.'!E7:E8,'F-2. MATRIZ PROB E IMPACTO.'!F8:F10,'F-2. MATRIZ PROB E IMPACTO.'!G10,'F-2. MATRIZ PROB E IMPACTO.'!H11)),"Prioridad Moderada",IF(AND(E22>=MIN('F-2. MATRIZ PROB E IMPACTO.'!D7:D11,'F-2. MATRIZ PROB E IMPACTO.'!E9:E11,'F-2. MATRIZ PROB E IMPACTO.'!F11,'F-2. MATRIZ PROB E IMPACTO.'!G11),E22<=MAX('F-2. MATRIZ PROB E IMPACTO.'!D7:D11,'F-2. MATRIZ PROB E IMPACTO.'!E9:E11,'F-2. MATRIZ PROB E IMPACTO.'!F11,'F-2. MATRIZ PROB E IMPACTO.'!G11,)),"Baja Prioridad","")))) -> Alta Prioridad | L22: =+E25 -> Mitigar Riesgo | M22: =+G25 -> X
L23: =+E26 -> Aceptar Riesgo | M23: =+G26 -> 0
A24: 5 | B24: RESPUESTA A LOS RIESGOS | L24: =+H25 -> Evitar Riesgo | M24: =+I25 -> 0
B25: 5.1 | C25: ESTRATEGIA | E25: Mitigar Riesgo | G25: X | H25: Evitar Riesgo | L25: =+H26 -> Transferir Riesgo | M25: =+I26 -> 0
E26: Aceptar Riesgo | H26: Transferir Riesgo
B27: 5.2 | C27: DISPARADOR DE RIESGO | E27: INFORME DE COMPATIBILIDAD PRESENTADO POR LA SUPERVISION, A INICIO DE LA OBRA, ALERTA SOBRE DEFICIENCIAS EN LOS DISEÑOS | M27: =IFERROR(INDEX(L22:M26,MATCH(IF(M22>0,M22,IF(M23>0,M23,IF(M24>0,M24,IF(M25>0,M25,IF(M26>0,M26,""))))),M22:M26,0),1),"") -> Mitigar Riesgo
B28: 5.3 | C28: ACCIONES PARA DAR RESPUESTA AL RIESGO | E28: * SUPERVISION INFORMA OCORRUNCIA Y ENTIDAD EVALUA A FIN DE TRASLADAR LAS RESPONSABILIDADES U OBLIGACIONES, ASI COMO TAMBIEN, DE PRESENTARSE VARIACIONES EN LOS COSTOS, IMPLEMENTAR MEDIDAS COMPENSATORIAS EN EL MARCO DE LA LEY DE CONTRATACIONES DEL ESTADO. * EL AREA DE ESTUDIOS Y PROYECTOS, A TRAVES DE COORDINADOR DEL PROYECTO Y ESPECIALISTA RECALCULA, REDISEÑA Y/O ABSUELVE CONSULTA DENTRO DE PLAZO DE LEY.

Sheet 002
A1: Anexo N° 01 | J1: Regresar
A2: Formato para identificar, analizar y dar respuesta a riesgos
A3: 1 | B3: NÚMERO Y FECHA DEL DOCUMENTO | D3: Número | F3: 02
D4: Fecha | F4: ='001'!F4:I4 -> ABRIL DEL 2022
A5: 2 | B5: DATOS GENERALES DEL PROYECTO | D5: Nombre del Proyecto | F5: ='001'!F5:I5 -> ‘‘MEJORAMIENTO DE LAS VÍAS DE CIRCULACIÓN INTERNA, SEÑALIZACIÓN Y ORNATO EN LA SEDE CENTRAL DE LA UNIVERSIDAD NACIONAL DE EDUCACIÓN ENRIQUE GUZMÁN Y VALLE’’ – SALDO DE OBRA – 1ERA ETAPA
D6: Ubicación Geográfica | F6: ='001'!F6:I6 -> DISTRITO CHOSICA, PROVINCIA LURIGANCHO, DEPARTAMENTO LIMA
A7: 3 | B7: IDENTIFICACIÓN DE RIESGOS
B8: 3.1 | C8: CÓDIGO DE RIESGO | E8: =+'F-3. ASIGNACION RIESGOS '!A10 -> VIAS-UNE-002
B9: 3.2 | C9: DESCRIPCIÓN DEL RIESGO | E9: =+'F-3. ASIGNACION RIESGOS '!B10 -> EQUIPOS Y/O MAQUINARIA NO CUMPLE CON ESPECIFICACIONES TECNICAS O NO ES APROPIADA PARA EJECUCION DE PARTIDAS SEGÚN CALIFICACION DE LA SUPERVISION
B10: 3.3 | C10: CAUSA(S) GENERADORA(S) | E10: Causa N° 1 | G10: EJECUTOR NO CUMPLE CON TRASLADO DE MAQUINARIA ESPECIFICADA PARA EL PROYECTO
E11: Causa N° 2 | G11: ANTIGÜEDAD U OBSELESCENCIA DE EQUIPOS Y MAQUINARIA
E12: Causa N° 3 | G12: EJECUTOR NO REPONE EQUIPOS Y/O MAQUINARIA SIMILAR A LA REQUERIDA POR EL PROYECTO, TRAS AVERIA.
A13: 4 | B13: ANÁLISIS CUALITATIVO DE RIESGOS
B14: 4.1 | C14: PROBABILIDAD DE OCURRENCIA | F14: 4.2 | G14: IMPACTO EN LA EJECUCIÓN DE LA OBRA
C15: Muy baja | D15: =+'[3]F-2. MATRIZ PROB E IMPACTO.'!C11 -> 0.1 | G15: Muy bajo | H15: =+'[3]F-2. MATRIZ PROB E IMPACTO.'!D12 -> 0.05
C16: Baja | D16: =+'[3]F-2. MATRIZ PROB E IMPACTO.'!C10 -> 0.3 | E16: X | G16: Bajo | H16: =+'[3]F-2. MATRIZ PROB E IMPACTO.'!E12 -> 0.1
C17: Moderada | D17: =+'[3]F-2. MATRIZ PROB E IMPACTO.'!C9 -> 0.5 | G17: Moderado | H17: =+'[3]F-2. MATRIZ PROB E IMPACTO.'!F12 -> 0.2
C18: Alta | D18: =+'[3]F-2. MATRIZ PROB E IMPACTO.'!C8 -> 0.7 | G18: Alto | H18: =+'[3]F-2. MATRIZ PROB E IMPACTO.'!G12 -> 0.4 | I18: X
C19: Muy alta | D19: =+'[3]F-2. MATRIZ PROB E IMPACTO.'!C7 -> 0.9 | G19: Muy alto | H19: =+'[3]F-2. MATRIZ PROB E IMPACTO.'!H12 -> 0.8
C20: =IFERROR(INDEX(C15:E19,MATCH(IF(E15>0,E15,IF(E16>0,E16,IF(E17>0,E17,IF(E18>0,E18,IF(E19>0,E19,""))))),E15:E19,0),1),"") -> Baja | E20: =IFERROR(INDEX(D15:E19,MATCH(IF(E15>0,E15,IF(E16>0,E16,IF(E17>0,E17,IF(E18>0,E18,IF(E19>0,E19,""))))),E15:E19,0),1),"") -> 0.3 | G20: =IFERROR(INDEX(G15:I19,MATCH(IF(I15>0,I15,IF(I16>0,I16,IF(I17>0,I17,IF(I18>0,I18,IF(I19>0,I19,""))))),I15:I19,0),1),"") -> Alto | I20: =IFERROR(INDEX(H15:I19,MATCH(IF(I15>0,I15,IF(I16>0,I16,IF(I17>0,I17,IF(I18>0,I18,IF(I19>0,I19,""))))),I15:I19,0),1),"") -> 0.4
B21: 4.3 | C21: PRIORIZACIÓN DEL RIESGO
C22: Puntuación del Riesgo =Probabilidad x Impacto | E22: =+IFERROR(ROUND(E20*I20,3),0) -> 0.12 | F22: Prioridad del Riesgo | H22: =+IF(E22=0,"",IF(AND(E22>=MIN('F-2. MATRIZ PROB E IMPACTO.'!F7:H7,'F-2. MATRIZ PROB E IMPACTO.'!G8:H8,'F-2. MATRIZ PROB E IMPACTO.'!G9:H9,'F-2. MATRIZ PROB E IMPACTO.'!H10),E22<=MAX('F-2. MATRIZ PROB E IMPACTO.'!F7:H7,'F-2. MATRIZ PROB E IMPACTO.'!G8:H8,'F-2. MATRIZ PROB E IMPACTO.'!G9:H9,'F-2. MATRIZ PROB E IMPACTO.'!H10)),"Alta Prioridad",IF(AND(E22>=MIN('F-2. MATRIZ PROB E IMPACTO.'!E7:E8,'F-2. MATRIZ PROB E IMPACTO.'!F8:F10,'F-2. MATRIZ PROB E IMPACTO.'!G10,'F-2. MATRIZ PROB E IMPACTO.'!H11),E22<=MAX('F-2. MATRIZ PROB E IMPACTO.'!E7:E8,'F-2. MATRIZ PROB E IMPACTO.'!F8:F10,'F-2. MATRIZ PROB E IMPACTO.'!G10,'F-2. MATRIZ PROB E IMPACTO.'!H11)),"Prioridad Moderada",IF(AND(E22>=MIN('F-2. MATRIZ PROB E IMPACTO.'!D7:D11,'F-2. MATRIZ PROB E IMPACTO.'!E9:E11,'F-2. MATRIZ PROB E IMPACTO.'!F11,'F-2. MATRIZ PROB E IMPACTO.'!G11),E22<=MAX('F-2. MATRIZ PROB E IMPACTO.'!D7:D11,'F-2. MATRIZ PROB E IMPACTO.'!E9:E11,'F-2. MATRIZ PROB E IMPACTO.'!F11,'F-2. MATRIZ PROB E IMPACTO.'!G11,)),"Baja Prioridad","")))) -> Prioridad Moderada | L22: =+E25 -> Mitigar Riesgo | M22: =+G25 -> 0
L23: =+E26 -> Aceptar Riesgo | M23: =+G26 -> 0
A24: 5 | B24: RESPUESTA A LOS RIESGOS | L24: =+H25 -> Evitar Riesgo | M24: =+I25 -> 0
B25: 5.1 | C25: ESTRATEGIA | E25: Mitigar Riesgo | H25: Evitar Riesgo | L25: =+H26 -> Transferir Riesgo | M25: =+I26 -> X
E26: Aceptar Riesgo | H26: Transferir Riesgo | I26: X
B27: 5.2 | C27: DISPARADOR DE RIESGO | E27: SUPERVISION CONTROLA Y VERIFICA MAQUINARIA Y/O EQUIPO QUE NO CUMPLA CON ESPECIFICACIONES TECNICAS DEL PROYECTO O INAPROPIADA SE RECHAZA | M27: =IFERROR(INDEX(L22:M26,MATCH(IF(M22>0,M22,IF(M23>0,M23,IF(M24>0,M24,IF(M25>0,M25,IF(M26>0,M26,""))))),M22:M26,0),1),"") -> Transferir Riesgo
B28: 5.3 | C28: ACCIONES PARA DAR RESPUESTA AL RIESGO | E28: *SUPERVISION OPORTUNAMENTE EVALUA Y APRUEBA LA MAQUINARIA EN SU PUNTO DE PARTIDA, AUTORIZANDO SU TRASLADO E INGRESO A LA OBRA. * CONTRATISTA CERTIFICA OPERATIVIDAD DE MAQUINARIA Y EQUIPOS EN SU PUNTO DE PARTIDA. * EJECUTOR ES RESPONSABLE DE CONTAR MINIMAMENTE CON UN (01) EQUIPO O MAQUINARIA ADICIONAL DE CARACTERISTICAS SIMILARES CARACTERISTICAS O REPONER EN UN PLAZO DETERMINADO POR LA SUPERVISION. * SUPERVISION ESTA AUTORIZADO PARA RECHAZAR MAQUINARIA Y EQUIPOS QUE NO CUMPLEN CON ESPECIFICACIONES TECNICAS O CONSIDERA INAPROPIADA PARA EJECUTAR LA OBRA.

Sheet 003
A1: Anexo N° 01 | J1: Regresar
A2: Formato para identificar, analizar y dar respuesta a riesgos
A3: 1 | B3: NÚMERO Y FECHA DEL DOCUMENTO | D3: Número | F3: 03
D4: Fecha | F4: ='001'!F4:I4 -> ABRIL DEL 2022
A5: 2 | B5: DATOS GENERALES DEL PROYECTO | D5: Nombre del Proyecto | F5: ='001'!F5:I5 -> ‘‘MEJORAMIENTO DE LAS VÍAS DE CIRCULACIÓN INTERNA, SEÑALIZACIÓN Y ORNATO EN LA SEDE CENTRAL DE LA UNIVERSIDAD NACIONAL DE EDUCACIÓN ENRIQUE GUZMÁN Y VALLE’’ – SALDO DE OBRA – 1ERA ETAPA
D6: Ubicación Geográfica | F6: ='001'!F6:I6 -> DISTRITO CHOSICA, PROVINCIA LURIGANCHO, DEPARTAMENTO LIMA
A7: 3 | B7: IDENTIFICACIÓN DE RIESGOS
B8: 3.1 | C8: CÓDIGO DE RIESGO | E8: =+'F-3. ASIGNACION RIESGOS '!A11 -> VIAS-UNE-003
B9: 3.2 | C9: DESCRIPCIÓN DEL RIESGO | E9: =+'F-3. ASIGNACION RIESGOS '!B11 -> DEFICIENCIAS ESTRUCTURALES EN LA CONSTRUCCION DE LAS VIAS PEATONALES Y CICLOVIAS
B10: 3.3 | C10: CAUSA(S) GENERADORA(S) | E10: Causa N° 1 | G10: EJECUTOR NO CUMPLE CON EL EXPEDIENTE TECNICO
E11: Causa N° 2 | G11: EJECUTOR EMPLEA MANO DE OBRA Y/O DIRECCION TECNICA NO CALIFICADA
E12: Causa N° 3 | G12: FALTA DE DIRECCION TECNICA
A13: 4 | B13: ANÁLISIS CUALITATIVO DE RIESGOS
B14: 4.1 | C14: PROBABILIDAD DE OCURRENCIA | F14: 4.2 | G14: IMPACTO EN LA EJECUCIÓN DE LA OBRA
C15: Muy baja | D15: =+'[3]F-2. MATRIZ PROB E IMPACTO.'!C11 -> 0.1 | G15: Muy bajo | H15: =+'[3]F-2. MATRIZ PROB E IMPACTO.'!D12 -> 0.05
C16: Baja | D16: =+'[3]F-2. MATRIZ PROB E IMPACTO.'!C10 -> 0.3 | E16: X | G16: Bajo | H16: =+'[3]F-2. MATRIZ PROB E IMPACTO.'!E12 -> 0.1
C17: Moderada | D17: =+'[3]F-2. MATRIZ PROB E IMPACTO.'!C9 -> 0.5 | G17: Moderado | H17: =+'[3]F-2. MATRIZ PROB E IMPACTO.'!F12 -> 0.2
C18: Alta | D18: =+'[3]F-2. MATRIZ PROB E IMPACTO.'!C8 -> 0.7 | G18: Alto | H18: =+'[3]F-2. MATRIZ PROB E IMPACTO.'!G12 -> 0.4
C19: Muy alta | D19: =+'[3]F-2. MATRIZ PROB E IMPACTO.'!C7 -> 0.9 | G19: Muy alto | H19: =+'[3]F-2. MATRIZ PROB E IMPACTO.'!H12 -> 0.8 | I19: X
C20: =IFERROR(INDEX(C15:E19,MATCH(IF(E15>0,E15,IF(E16>0,E16,IF(E17>0,E17,IF(E18>0,E18,IF(E19>0,E19,""))))),E15:E19,0),1),"") -> Baja | E20: =IFERROR(INDEX(D15:E19,MATCH(IF(E15>0,E15,IF(E16>0,E16,IF(E17>0,E17,IF(E18>0,E18,IF(E19>0,E19,""))))),E15:E19,0),1),"") -> 0.3 | G20: =IFERROR(INDEX(G15:I19,MATCH(IF(I15>0,I15,IF(I16>0,I16,IF(I17>0,I17,IF(I18>0,I18,IF(I19>0,I19,""))))),I15:I19,0),1),"") -> Muy alto | I20: =IFERROR(INDEX(H15:I19,MATCH(IF(I15>0,I15,IF(I16>0,I16,IF(I17>0,I17,IF(I18>0,I18,IF(I19>0,I19,""))))),I15:I19,0),1),"") -> 0.8
B21: 4.3 | C21: PRIORIZACIÓN DEL RIESGO
C22: Puntuación del Riesgo =Probabilidad x Impacto | E22: =+IFERROR(ROUND(E20*I20,3),0) -> 0.24 | F22: Prioridad del Riesgo | H22: =+IF(E22=0,"",IF(AND(E22>=MIN('F-2. MATRIZ PROB E IMPACTO.'!F7:H7,'F-2. MATRIZ PROB E IMPACTO.'!G8:H8,'F-2. MATRIZ PROB E IMPACTO.'!G9:H9,'F-2. MATRIZ PROB E IMPACTO.'!H10),E22<=MAX('F-2. MATRIZ PROB E IMPACTO.'!F7:H7,'F-2. MATRIZ PROB E IMPACTO.'!G8:H8,'F-2. MATRIZ PROB E IMPACTO.'!G9:H9,'F-2. MATRIZ PROB E IMPACTO.'!H10)),"Alta Prioridad",IF(AND(E22>=MIN('F-2. MATRIZ PROB E IMPACTO.'!E7:E8,'F-2. MATRIZ PROB E IMPACTO.'!F8:F10,'F-2. MATRIZ PROB E IMPACTO.'!G10,'F-2. MATRIZ PROB E IMPACTO.'!H11),E22<=MAX('F-2. MATRIZ PROB E IMPACTO.'!E7:E8,'F-2. MATRIZ PROB E IMPACTO.'!F8:F10,'F-2. MATRIZ PROB E IMPACTO.'!G10,'F-2. MATRIZ PROB E IMPACTO.'!H11)),"Prioridad Moderada",IF(AND(E22>=MIN('F-2. MATRIZ PROB E IMPACTO.'!D7:D11,'F-2. MATRIZ PROB E IMPACTO.'!E9:E11,'F-2. MATRIZ PROB E IMPACTO.'!F11,'F-2. MATRIZ PROB E IMPACTO.'!G11),E22<=MAX('F-2. MATRIZ PROB E IMPACTO.'!D7:D11,'F-2. MATRIZ PROB E IMPACTO.'!E9:E11,'F-2. MATRIZ PROB E IMPACTO.'!F11,'F-2. MATRIZ PROB E IMPACTO.'!G11,)),"Baja Prioridad","")))) -> Alta Prioridad | L22: =+E25 -> Mitigar Riesgo | M22: =+G25 -> 0
L23: =+E26 -> Aceptar Riesgo | M23: =+G26 -> 0
A24: 5 | B24: RESPUESTA A LOS RIESGOS | L24: =+H25 -> Evitar Riesgo | M24: =+I25 -> 0
B25: 5.1 | C25: ESTRATEGIA | E25: Mitigar Riesgo | H25: Evitar Riesgo | L25: =+H26 -> Transferir Riesgo | M25: =+I26 -> X
E26: Aceptar Riesgo | H26: Transferir Riesgo | I26: X
B27: 5.2 | C27: DISPARADOR DE RIESGO | E27: SUPERVISION U OTRO PROFESIONAL DE LA ESPECIALIDAD POR PARTE DE LA ENTIDAD DETECTA DEFICIENCIAS EN ESTRUCTURAS METALICAS | M27: =IFERROR(INDEX(L22:M26,MATCH(IF(M22>0,M22,IF(M23>0,M23,IF(M24>0,M24,IF(M25>0,M25,IF(M26>0,M26,""))))),M22:M26,0),1),"") -> Transferir Riesgo
B28: 5.3 | C28: ACCIONES PARA DAR RESPUESTA AL RIESGO | E28: * LA SUPERVISION EXIGE PERMANENCIA DE RESIDENTE DE OBRA Y ESPECIALISTA EN SUELOS Y CONTROL DE CALIDAD DEL EJECUTOR. * LA SUPERVISION CALIFICA Y AUTORIZA EMPLEO DE MANO DE OBRA. * LA SUPERVISION SIEMPRE AUTORIZA EJECUCION DE PARTIDAS SUCESORAS MEDIANTE ANOTACION EN CUADERNO DE OBRA. * EJECUTOR A SU COSTO EFECTUA LAS CORRECIONES A SATISFACCION DE LA SUPERVISION, PROYECTISTA U OTRO PROFESIONAL DE LA ESPECIALIDAD POR PARTE DE LA ENTIDAD.

Sheet 004
A1: Anexo N° 01 | J1: Regresar
A2: Formato para identificar, analizar y dar respuesta a riesgos
A3: 1 | B3: NÚMERO Y FECHA DEL DOCUMENTO | D3: Número | F3: 04
D4: Fecha | F4: ='001'!F4:I4 -> ABRIL DEL 2022
A5: 2 | B5: DATOS GENERALES DEL PROYECTO | D5: Nombre del Proyecto | F5: ='001'!F5:I5 -> ‘‘MEJORAMIENTO DE LAS VÍAS DE CIRCULACIÓN INTERNA, SEÑALIZACIÓN Y ORNATO EN LA SEDE CENTRAL DE LA UNIVERSIDAD NACIONAL DE EDUCACIÓN ENRIQUE GUZMÁN Y VALLE’’ – SALDO DE OBRA – 1ERA ETAPA
D6: Ubicación Geográfica | F6: ='001'!F6:I6 -> DISTRITO CHOSICA, PROVINCIA LURIGANCHO, DEPARTAMENTO LIMA
A7: 3 | B7: IDENTIFICACIÓN DE RIESGOS
B8: 3.1 | C8: CÓDIGO DE RIESGO | E8: =+'F-3. ASIGNACION RIESGOS '!A12 -> VIAS-UNE-004
B9: 3.2 | C9: DESCRIPCIÓN DEL RIESGO | E9: =+'F-3. ASIGNACION RIESGOS '!B12 -> DAÑOS A INFRAESTRUCTURA EXISTENTE DE LA ENTIDAD O PROPIEDAD DE TERCEROS.
B10: 3.3 | C10: CAUSA(S) GENERADORA(S) | E10: Causa N° 1 | G10: NO SE IMPLEMENTAN MEDIDAS DE PROTECCION O SEÑALIZACION
E11: Causa N° 2 | G11: MALA OPERACIÓN DE EQUIPOS Y/O MAQUINARIA DE DEMOLICION, CARGUIO Y/O ELIMINACION,
E12: Causa N° 3 | G12: TRASLADO DE MATERIALES, EXCEDENTES Y/O MAQUINARIA EN MEDIOS INAPROPIADOS.
E13: Causa N° 4 | G13: TRASLADO INAPROPIADO DE MATERIALES, EXCEDENTES Y/O MAQUINARIA.
A14: 4 | B14: ANÁLISIS CUALITATIVO DE RIESGOS
B15: 4.1 | C15: PROBABILIDAD DE OCURRENCIA | F15: 4.2 | G15: IMPACTO EN LA EJECUCIÓN DE LA OBRA
C16: Muy baja | D16: =+'[3]F-2. MATRIZ PROB E IMPACTO.'!C11 -> 0.1 | G16: Muy bajo | H16: =+'[3]F-2. MATRIZ PROB E IMPACTO.'!D12 -> 0.05
C17: Baja | D17: =+'[3]F-2. MATRIZ PROB E IMPACTO.'!C10 -> 0.3 | E17: X | G17: Bajo | H17: =+'[3]F-2. MATRIZ PROB E IMPACTO.'!E12 -> 0.1
C18: Moderada | D18: =+'[3]F-2. MATRIZ PROB E IMPACTO.'!C9 -> 0.5 | G18: Moderado | H18: =+'[3]F-2. MATRIZ PROB E IMPACTO.'!F12 -> 0.2
C19: Alta | D19: =+'[3]F-2. MATRIZ PROB E IMPACTO.'!C8 -> 0.7 | G19: Alto | H19: =+'[3]F-2. MATRIZ PROB E IMPACTO.'!G12 -> 0.4 | I19: X
C20: Muy alta | D20: =+'[3]F-2. MATRIZ PROB E IMPACTO.'!C7 -> 0.9 | G20: Muy alto | H20: =+'[3]F-2. MATRIZ PROB E IMPACTO.'!H12 -> 0.8
C21: =IFERROR(INDEX(C16:E20,MATCH(IF(E16>0,E16,IF(E17>0,E17,IF(E18>0,E18,IF(E19>0,E19,IF(E20>0,E20,""))))),E16:E20,0),1),"") -> Baja | E21: =IFERROR(INDEX(D16:E20,MATCH(IF(E16>0,E16,IF(E17>0,E17,IF(E18>0,E18,IF(E19>0,E19,IF(E20>0,E20,""))))),E16:E20,0),1),"") -> 0.3 | G21: =IFERROR(INDEX(G16:I20,MATCH(IF(I16>0,I16,IF(I17>0,I17,IF(I18>0,I18,IF(I19>0,I19,IF(I20>0,I20,""))))),I16:I20,0),1),"") -> Alto | I21: =IFERROR(INDEX(H16:I20,MATCH(IF(I16>0,I16,IF(I17>0,I17,IF(I18>0,I18,IF(I19>0,I19,IF(I20>0,I20,""))))),I16:I20,0),1),"") -> 0.4
B22: 4.3 | C22: PRIORIZACIÓN DEL RIESGO
C23: Puntuación del Riesgo =Probabilidad x Impacto | E23: =+IFERROR(ROUND(E21*I21,3),0) -> 0.12 | F23: Prioridad del Riesgo | H23: =+IF(E23=0,"",IF(AND(E23>=MIN('F-2. MATRIZ PROB E IMPACTO.'!F7:H7,'F-2. MATRIZ PROB E IMPACTO.'!G8:H8,'F-2. MATRIZ PROB E IMPACTO.'!G9:H9,'F-2. MATRIZ PROB E IMPACTO.'!H10),E23<=MAX('F-2. MATRIZ PROB E IMPACTO.'!F7:H7,'F-2. MATRIZ PROB E IMPACTO.'!G8:H8,'F-2. MATRIZ PROB E IMPACTO.'!G9:H9,'F-2. MATRIZ PROB E IMPACTO.'!H10)),"Alta Prioridad",IF(AND(E23>=MIN('F-2. MATRIZ PROB E IMPACTO.'!E7:E8,'F-2. MATRIZ PROB E IMPACTO.'!F8:F10,'F-2. MATRIZ PROB E IMPACTO.'!G10,'F-2. MATRIZ PROB E IMPACTO.'!H11),E23<=MAX('F-2. MATRIZ PROB E IMPACTO.'!E7:E8,'F-2. MATRIZ PROB E IMPACTO.'!F8:F10,'F-2. MATRIZ PROB E IMPACTO.'!G10,'F-2. MATRIZ PROB E IMPACTO.'!H11)),"Prioridad Moderada",IF(AND(E23>=MIN('F-2. MATRIZ PROB E IMPACTO.'!D7:D11,'F-2. MATRIZ PROB E IMPACTO.'!E9:E11,'F-2. MATRIZ PROB E IMPACTO.'!F11,'F-2. MATRIZ PROB E IMPACTO.'!G11),E23<=MAX('F-2. MATRIZ PROB E IMPACTO.'!D7:D11,'F-2. MATRIZ PROB E IMPACTO.'!E9:E11,'F-2. MATRIZ PROB E IMPACTO.'!F11,'F-2. MATRIZ PROB E IMPACTO.'!G11,)),"Baja Prioridad","")))) -> Prioridad Moderada | L23: =+E26 -> Mitigar Riesgo | M23: =+G26 -> 0
L24: =+E27 -> Aceptar Riesgo | M24: =+G27 -> 0
A25: 5 | B25: RESPUESTA A LOS RIESGOS | L25: =+H26 -> Evitar Riesgo | M25: =+I26 -> 0
B26: 5.1 | C26: ESTRATEGIA | E26: Mitigar Riesgo | H26: Evitar Riesgo | L26: =+H27 -> Transferir Riesgo | M26: =+I27 -> x
E27: Aceptar Riesgo | H27: Transferir Riesgo | I27: x
B28: 5.2 | C28: DISPARADOR DE RIESGO | E28: DENUNCIA POLICIAL - SUPERVISION CONSTATA DAÑOS DEL EJECUTOR - DENUNCIA DE LA COMUNIDAD | M28: =IFERROR(INDEX(L23:M27,MATCH(IF(M23>0,M23,IF(M24>0,M24,IF(M25>0,M25,IF(M26>0,M26,IF(M27>0,M27,""))))),M23:M27,0),1),"") -> Transferir Riesgo
B29: 5.3 | C29: ACCIONES PARA DAR RESPUESTA AL RIESGO | E29: *EJECUTOR DEBERA DE CUMPLIR CON MEDIDAS DE PROTECCION Y SEGURIDAD PARA TRASLADO DE PERSONAL, MATERIALES, MAQUINARIA Y/O EQUIPOS, ASI MISMO UNA BUENA SEÑALIZACION VIAL EN CASO SE INTERRUMPA LOS ACCESOS VEHICULARES. *EL EJECUTOR A SU COSTO ESTA OBLIGADO A REPARAR, REPONER, RECONSTRUIR, DEJANDO EN SIMILAR O MEJOR CONDICION LO DAÑADO. * EL EJECUTOR ES RESPONSABLE DE ADQUIRIR Y MANTENER VIGENTE LOS SEGUROS CONTRA RIESGO DE INGENIERIA, DAÑOS A TERCEROS, ETC. * EJECUTOR ESTA OBLIGADO A TENER UN INGENIERO ESPECIALISTA EN SEGURIDAD Y SALUD OCUPACIONAL EN TODAS LAS ACTIVIDADES QUE CONSTITUYAN RIESGO A PROPIDAD DE TERCEROS Y DE LA ENTIDAD * SUPERVISION EVALUA Y AUTORIZA PARTICIPACION DE OPERADORES CALIFICADAS EN LA OBRA.

Sheet 005
A1: Anexo N° 01 | J1: Regresar
A2: Formato para identificar, analizar y dar respuesta a riesgos
A3: 1 | B3: NÚMERO Y FECHA DEL DOCUMENTO | D3: Número | F3: 05
D4: Fecha | F4: ='001'!F4:I4 -> ABRIL DEL 2022
A5: 2 | B5: DATOS GENERALES DEL PROYECTO | D5: Nombre del Proyecto | F5: ='001'!F5:I5 -> ‘‘MEJORAMIENTO DE LAS VÍAS DE CIRCULACIÓN INTERNA, SEÑALIZACIÓN Y ORNATO EN LA SEDE CENTRAL DE LA UNIVERSIDAD NACIONAL DE EDUCACIÓN ENRIQUE GUZMÁN Y VALLE’’ – SALDO DE OBRA – 1ERA ETAPA
D6: Ubicación Geográfica | F6: ='001'!F6:I6 -> DISTRITO CHOSICA, PROVINCIA LURIGANCHO, DEPARTAMENTO LIMA
A7: 3 | B7: IDENTIFICACIÓN DE RIESGOS
B8: 3.1 | C8: CÓDIGO DE RIESGO | E8: =+'F-3. ASIGNACION RIESGOS '!A13 -> VIAS-UNE-005
B9: 3.2 | C9: DESCRIPCIÓN DEL RIESGO | E9: =+'F-3. ASIGNACION RIESGOS '!B13 -> DEFICIENCIA EN TRABAJOS DE PLAN DE CONTINGENCIA Y ADECUACION A LA NORMA GE.030 CALIDAD DE LA CONSTRUCCION, EN CONCORDANCIA CON LA PROGRAMACION DE OBRA
B10: 3.3 | C10: CAUSA(S) GENERADORA(S) | E10: Causa N° 1 | G10: MAL PROCEDIMIENTO CONSTRUCTIVO DE PLAN DE CONTINGENCIA Y TRABAJOS DE ADECUACION, NO SE CUMPLE CON EL EXPEDIENTE TECNICO
E11: Causa N° 2 | G11: USO DE MATERIALES DE MALA CALIDAD
E12: Causa N° 3 | G12: USO DE MANO DE OBRA NO CALIFICADA
E13: Causa N° 4 | G13: DEFICIENTE O NO HAY PRESENCIA DE DIRECCION TECNICA
A14: 4 | B14: ANÁLISIS CUALITATIVO DE RIESGOS
B15: 4.1 | C15: PROBABILIDAD DE OCURRENCIA | F15: 4.2 | G15: IMPACTO EN LA EJECUCIÓN DE LA OBRA
C16: Muy baja | D16: =+'[3]F-2. MATRIZ PROB E IMPACTO.'!C11 -> 0.1 | G16: Muy bajo | H16: =+'[3]F-2. MATRIZ PROB E IMPACTO.'!D12 -> 0.05
C17: Baja | D17: =+'[3]F-2. MATRIZ PROB E IMPACTO.'!C10 -> 0.3 | G17: Bajo | H17: =+'[3]F-2. MATRIZ PROB E IMPACTO.'!E12 -> 0.1
C18: Moderada | D18: =+'[3]F-2. MATRIZ PROB E IMPACTO.'!C9 -> 0.5 | E18: X | G18: Moderado | H18: =+'[3]F-2. MATRIZ PROB E IMPACTO.'!F12 -> 0.2
C19: Alta | D19: =+'[3]F-2. MATRIZ PROB E IMPACTO.'!C8 -> 0.7 | G19: Alto | H19: =+'[3]F-2. MATRIZ PROB E IMPACTO.'!G12 -> 0.4 | I19: X
C20: Muy alta | D20: =+'[3]F-2. MATRIZ PROB E IMPACTO.'!C7 -> 0.9 | G20: Muy alto | H20: =+'[3]F-2. MATRIZ PROB E IMPACTO.'!H12 -> 0.8
C21: =IFERROR(INDEX(C16:E20,MATCH(IF(E16>0,E16,IF(E17>0,E17,IF(E18>0,E18,IF(E19>0,E19,IF(E20>0,E20,""))))),E16:E20,0),1),"") -> Moderada | E21: =IFERROR(INDEX(D16:E20,MATCH(IF(E16>0,E16,IF(E17>0,E17,IF(E18>0,E18,IF(E19>0,E19,IF(E20>0,E20,""))))),E16:E20,0),1),"") -> 0.5 | G21: =IFERROR(INDEX(G16:I20,MATCH(IF(I16>0,I16,IF(I17>0,I17,IF(I18>0,I18,IF(I19>0,I19,IF(I20>0,I20,""))))),I16:I20,0),1),"") -> Alto | I21: =IFERROR(INDEX(H16:I20,MATCH(IF(I16>0,I16,IF(I17>0,I17,IF(I18>0,I18,IF(I19>0,I19,IF(I20>0,I20,""))))),I16:I20,0),1),"") -> 0.4
B22: 4.3 | C22: PRIORIZACIÓN DEL RIESGO
C23: Puntuación del Riesgo =Probabilidad x Impacto | E23: =+IFERROR(ROUND(E21*I21,3),0) -> 0.2 | F23: Prioridad del Riesgo | H23: =+IF(E23=0,"",IF(AND(E23>=MIN('F-2. MATRIZ PROB E IMPACTO.'!F7:H7,'F-2. MATRIZ PROB E IMPACTO.'!G8:H8,'F-2. MATRIZ PROB E IMPACTO.'!G9:H9,'F-2. MATRIZ PROB E IMPACTO.'!H10),E23<=MAX('F-2. MATRIZ PROB E IMPACTO.'!F7:H7,'F-2. MATRIZ PROB E IMPACTO.'!G8:H8,'F-2. MATRIZ PROB E IMPACTO.'!G9:H9,'F-2. MATRIZ PROB E IMPACTO.'!H10)),"Alta Prioridad",IF(AND(E23>=MIN('F-2. MATRIZ PROB E IMPACTO.'!E7:E8,'F-2. MATRIZ PROB E IMPACTO.'!F8:F10,'F-2. MATRIZ PROB E IMPACTO.'!G10,'F-2. MATRIZ PROB E IMPACTO.'!H11),E23<=MAX('F-2. MATRIZ PROB E IMPACTO.'!E7:E8,'F-2. MATRIZ PROB E IMPACTO.'!F8:F10,'F-2. MATRIZ PROB E IMPACTO.'!G10,'F-2. MATRIZ PROB E IMPACTO.'!H11)),"Prioridad Moderada",IF(AND(E23>=MIN('F-2. MATRIZ PROB E IMPACTO.'!D7:D11,'F-2. MATRIZ PROB E IMPACTO.'!E9:E11,'F-2. MATRIZ PROB E IMPACTO.'!F11,'F-2. MATRIZ PROB E IMPACTO.'!G11),E23<=MAX('F-2. MATRIZ PROB E IMPACTO.'!D7:D11,'F-2. MATRIZ PROB E IMPACTO.'!E9:E11,'F-2. MATRIZ PROB E IMPACTO.'!F11,'F-2. MATRIZ PROB E IMPACTO.'!G11,)),"Baja Prioridad","")))) -> Alta Prioridad | L23: =+E26 -> Mitigar Riesgo | M23: =+G26 -> 0
L24: =+E27 -> Aceptar Riesgo | M24: =+G27 -> 0
A25: 5 | B25: RESPUESTA A LOS RIESGOS | L25: =+H26 -> Evitar Riesgo | M25: =+I26 -> 0
B26: 5.1 | C26: ESTRATEGIA | E26: Mitigar Riesgo | H26: Evitar Riesgo | L26: =+H27 -> Transferir Riesgo | M26: =+I27 -> X
E27: Aceptar Riesgo | H27: Transferir Riesgo | I27: X
B28: 5.2 | C28: DISPARADOR DE RIESGO | E28: SUPERVISION U OTRO PROFESIONAL DE LA ESPECIALIDAD POR PARTE DE LA ENTIDAD DETECTA DEFICIENCIAS | M28: =IFERROR(INDEX(L23:M27,MATCH(IF(M23>0,M23,IF(M24>0,M24,IF(M25>0,M25,IF(M26>0,M26,IF(M27>0,M27,""))))),M23:M27,0),1),"") -> Transferir Riesgo
B29: 5.3 | C29: ACCIONES PARA DAR RESPUESTA AL RIESGO | E29: *SUPERVISION SOLICITA OPORTUNAMENTE CERTIFICADO DE CALIDAD DE MATERIALES. *SUPERVISION EVALUA Y AUTORIZA OPORTUNAMENTE USO DE EQUIPOS PARA LOS TRABAJOS. *RESIDENTE DE OBRA DIRIGE DE MANERA PERMANENTE PROCESO CONSTRUCTIVO * SUPERVISION NO LIBERA TRABAJOS DEFICIENTES, HASTA QUE EL EJECUTOR A SU COSTO EFECTUA LAS CORRECCIONES, A SATISFACCION DE LA SUPERVISION * LA SUPERVISION EXIGE PERMANENCIA DE RESIDENTE DE OBRA Y ESPECIALISTAS DEL EJECUTOR. * LA SUPERVISION CALIFICA Y AUTORIZA EMPLEO DE MANO DE OBRA. * LA SUPERVISION SIEMPRE AUTORIZA EJECUCION DE PARTIDAS SUCESORAS MEDIANTE ANOTACION EN CUADERNO DE OBRA.

Sheet 006
A1: Anexo N° 01 | J1: Regresar
A2: Formato para identificar, analizar y dar respuesta a riesgos
A3: 1 | B3: NÚMERO Y FECHA DEL DOCUMENTO | D3: Número | F3: 06
D4: Fecha | F4: ='001'!F4:I4 -> ABRIL DEL 2022
A5: 2 | B5: DATOS GENERALES DEL PROYECTO | D5: Nombre del Proyecto | F5: ='001'!F5:I5 -> ‘‘MEJORAMIENTO DE LAS VÍAS DE CIRCULACIÓN INTERNA, SEÑALIZACIÓN Y ORNATO EN LA SEDE CENTRAL DE LA UNIVERSIDAD NACIONAL DE EDUCACIÓN ENRIQUE GUZMÁN Y VALLE’’ – SALDO DE OBRA – 1ERA ETAPA
D6: Ubicación Geográfica | F6: ='001'!F6:I6 -> DISTRITO CHOSICA, PROVINCIA LURIGANCHO, DEPARTAMENTO LIMA
A7: 3 | B7: IDENTIFICACIÓN DE RIESGOS
B8: 3.1 | C8: CÓDIGO DE RIESGO | E8: =+'F-3. ASIGNACION RIESGOS '!A14 -> VIAS-UNE-006
B9: 3.2 | C9: DESCRIPCIÓN DEL RIESGO | E9: =+'F-3. ASIGNACION RIESGOS '!B14 -> RIESGO DE EXCESO DE RUIDO, REMANENTES DE ACERO CORRUGADO FY=4200 KG/CM2 GRADO 60 Y CONTAMINACION DE POLVO AL REALIZAR TRABAJOS DE CAMPO
B10: 3.3 | C10: CAUSA(S) GENERADORA(S) | E10: Causa N° 1 | G10: MAL USO O MAL ESTADO DE MAQUINARIA Y EQUIPOS.
E11: Causa N° 2 | G11: EJECUCION PARALELA DE ACTIVIDADES EN UN MISMO LUGAR Y FUERA DE HORARIOS DE TRABAJO
E12: Causa N° 3 | G12: SE INCUMPLEN NORMATIVA Y MEDIDAS DE MITIGACION DE IMPACTO AMBIENTAL
A13: 4 | B13: ANÁLISIS CUALITATIVO DE RIESGOS
B14: 4.1 | C14: PROBABILIDAD DE OCURRENCIA | F14: 4.2 | G14: IMPACTO EN LA EJECUCIÓN DE LA OBRA
C15: Muy baja | D15: =+'[3]F-2. MATRIZ PROB E IMPACTO.'!C11 -> 0.1 | G15: Muy bajo | H15: =+'[3]F-2. MATRIZ PROB E IMPACTO.'!D12 -> 0.05
C16: Baja | D16: =+'[3]F-2. MATRIZ PROB E IMPACTO.'!C10 -> 0.3 | G16: Bajo | H16: =+'[3]F-2. MATRIZ PROB E IMPACTO.'!E12 -> 0.1
C17: Moderada | D17: =+'[3]F-2. MATRIZ PROB E IMPACTO.'!C9 -> 0.5 | E17: X | G17: Moderado | H17: =+'[3]F-2. MATRIZ PROB E IMPACTO.'!F12 -> 0.2 | I17: X
C18: Alta | D18: =+'[3]F-2. MATRIZ PROB E IMPACTO.'!C8 -> 0.7 | G18: Alto | H18: =+'[3]F-2. MATRIZ PROB E IMPACTO.'!G12 -> 0.4
C19: Muy alta | D19: =+'[3]F-2. MATRIZ PROB E IMPACTO.'!C7 -> 0.9 | G19: Muy alto | H19: =+'[3]F-2. MATRIZ PROB E IMPACTO.'!H12 -> 0.8
C20: =IFERROR(INDEX(C15:E19,MATCH(IF(E15>0,E15,IF(E16>0,E16,IF(E17>0,E17,IF(E18>0,E18,IF(E19>0,E19,""))))),E15:E19,0),1),"") -> Moderada | E20: =IFERROR(INDEX(D15:E19,MATCH(IF(E15>0,E15,IF(E16>0,E16,IF(E17>0,E17,IF(E18>0,E18,IF(E19>0,E19,""))))),E15:E19,0),1),"") -> 0.5 | G20: =IFERROR(INDEX(G15:I19,MATCH(IF(I15>0,I15,IF(I16>0,I16,IF(I17>0,I17,IF(I18>0,I18,IF(I19>0,I19,""))))),I15:I19,0),1),"") -> Moderado | I20: =IFERROR(INDEX(H15:I19,MATCH(IF(I15>0,I15,IF(I16>0,I16,IF(I17>0,I17,IF(I18>0,I18,IF(I19>0,I19,""))))),I15:I19,0),1),"") -> 0.2
B21: 4.3 | C21: PRIORIZACIÓN DEL RIESGO
C22: Puntuación del Riesgo =Probabilidad x Impacto | E22: =+IFERROR(ROUND(E20*I20,3),0) -> 0.1 | F22: Prioridad del Riesgo | H22: =+IF(E22=0,"",IF(AND(E22>=MIN('F-2. MATRIZ PROB E IMPACTO.'!F7:H7,'F-2. MATRIZ PROB E IMPACTO.'!G8:H8,'F-2. MATRIZ PROB E IMPACTO.'!G9:H9,'F-2. MATRIZ PROB E IMPACTO.'!H10),E22<=MAX('F-2. MATRIZ PROB E IMPACTO.'!F7:H7,'F-2. MATRIZ PROB E IMPACTO.'!G8:H8,'F-2. MATRIZ PROB E IMPACTO.'!G9:H9,'F-2. MATRIZ PROB E IMPACTO.'!H10)),"Alta Prioridad",IF(AND(E22>=MIN('F-2. MATRIZ PROB E IMPACTO.'!E7:E8,'F-2. MATRIZ PROB E IMPACTO.'!F8:F10,'F-2. MATRIZ PROB E IMPACTO.'!G10,'F-2. MATRIZ PROB E IMPACTO.'!H11),E22<=MAX('F-2. MATRIZ PROB E IMPACTO.'!E7:E8,'F-2. MATRIZ PROB E IMPACTO.'!F8:F10,'F-2. MATRIZ PROB E IMPACTO.'!G10,'F-2. MATRIZ PROB E IMPACTO.'!H11)),"Prioridad Moderada",IF(AND(E22>=MIN('F-2. MATRIZ PROB E IMPACTO.'!D7:D11,'F-2. MATRIZ PROB E IMPACTO.'!E9:E11,'F-2. MATRIZ PROB E IMPACTO.'!F11,'F-2. MATRIZ PROB E IMPACTO.'!G11),E22<=MAX('F-2. MATRIZ PROB E IMPACTO.'!D7:D11,'F-2. MATRIZ PROB E IMPACTO.'!E9:E11,'F-2. MATRIZ PROB E IMPACTO.'!F11,'F-2. MATRIZ PROB E IMPACTO.'!G11,)),"Baja Prioridad","")))) -> Prioridad Moderada | L22: =+E25 -> Mitigar Riesgo | M22: =+G25 -> 0
L23: =+E26 -> Aceptar Riesgo | M23: =+G26 -> 0
A24: 5 | B24: RESPUESTA A LOS RIESGOS | L24: =+H25 -> Evitar Riesgo | M24: =+I25 -> 0
B25: 5.1 | C25: ESTRATEGIA | E25: Mitigar Riesgo | H25: Evitar Riesgo | L25: =+H26 -> Transferir Riesgo | M25: =+I26 -> X
E26: Aceptar Riesgo | H26: Transferir Riesgo | I26: X
B27: 5.2 | C27: DISPARADOR DE RIESGO | E27: NO SE CUMPLE CON LIMITES PERMISIBLES DE CONTAMINACION - SUPERVISOR DETECTA CONTAMINACION - RECLAMOS O DENUNCIA POR PARTE DE AUTORIDADES O DE LA COMUNIDAD | M27: =IFERROR(INDEX(L22:M26,MATCH(IF(M22>0,M22,IF(M23>0,M23,IF(M24>0,M24,IF(M25>0,M25,IF(M26>0,M26,""))))),M22:M26,0),1),"") -> Transferir Riesgo
B28: 5.3 | C28: ACCIONES PARA DAR RESPUESTA AL RIESGO | E28: *SUPERVISION CONTROLA LA EJECUCION DEL PLAN DE MANEJO AMBIENTAL Y DE SER NECESARIO ADECUA EL PLAN A LAS NECESIDADES REALES. *SUPERVISION CONTROLA EL USO DE LA MAQUINARIAS Y HORARIOS DE TRABAJO. * EJECUTOR A SU COSTO IMPLEMENTA MEDIDAS PARA CONTROLAR LOS IMPACTOS NEGATIVOS PROPIOS DE SUS ACTIVIDADES CONSTRUCTIVAS Y REPARA DAÑOS CAUSADOS AL MEDIO AMBIENTE.

Sheet 007
A1: Anexo N° 01 | J1: Regresar
A2: Formato para identificar, analizar y dar respuesta a riesgos
A3: 1 | B3: NÚMERO Y FECHA DEL DOCUMENTO | D3: Número | F3: 07
D4: Fecha | F4: ='001'!F4:I4 -> ABRIL DEL 2022
A5: 2 | B5: DATOS GENERALES DEL PROYECTO | D5: Nombre del Proyecto | F5: ='001'!F5:I5 -> ‘‘MEJORAMIENTO DE LAS VÍAS DE CIRCULACIÓN INTERNA, SEÑALIZACIÓN Y ORNATO EN LA SEDE CENTRAL DE LA UNIVERSIDAD NACIONAL DE EDUCACIÓN ENRIQUE GUZMÁN Y VALLE’’ – SALDO DE OBRA – 1ERA ETAPA
D6: Ubicación Geográfica | F6: ='001'!F6:I6 -> DISTRITO CHOSICA, PROVINCIA LURIGANCHO, DEPARTAMENTO LIMA
A7: 3 | B7: IDENTIFICACIÓN DE RIESGOS
B8: 3.1 | C8: CÓDIGO DE RIESGO | E8: =+'F-3. ASIGNACION RIESGOS '!A15 -> VIAS-UNE-007
B9: 3.2 | C9: DESCRIPCIÓN DEL RIESGO | E9: =+'F-3. ASIGNACION RIESGOS '!B15 -> RIESGO DE ATRASOS POR DEMORA EN ATENCION DE CONSULTAS SOBRE OCURRENCIAS DE OBRA
B10: 3.3 | C10: CAUSA(S) GENERADORA(S) | E10: Causa N° 1 | G10: SUPERVISION NO ATIENDE CONSULTAS OPORTUNAMENTE
E11: Causa N° 2 | G11: PROYECTISTA NO ATIENDE CONSULTAS OPORTUNAMENTE
E12: Causa N° 3 | G12: EXCESO DE GESTIONES O TRAMITE EN LA ENTIDAD
A13: 4 | B13: ANÁLISIS CUALITATIVO DE RIESGOS
B14: 4.1 | C14: PROBABILIDAD DE OCURRENCIA | F14: 4.2 | G14: IMPACTO EN LA EJECUCIÓN DE LA OBRA
C15: Muy baja | D15: =+'[3]F-2. MATRIZ PROB E IMPACTO.'!C11 -> 0.1 | G15: Muy bajo | H15: =+'[3]F-2. MATRIZ PROB E IMPACTO.'!D12 -> 0.05
C16: Baja | D16: =+'[3]F-2. MATRIZ PROB E IMPACTO.'!C10 -> 0.3 | G16: Bajo | H16: =+'[3]F-2. MATRIZ PROB E IMPACTO.'!E12 -> 0.1
C17: Moderada | D17: =+'[3]F-2. MATRIZ PROB E IMPACTO.'!C9 -> 0.5 | E17: X | G17: Moderado | H17: =+'[3]F-2. MATRIZ PROB E IMPACTO.'!F12 -> 0.2
C18: Alta | D18: =+'[3]F-2. MATRIZ PROB E IMPACTO.'!C8 -> 0.7 | G18: Alto | H18: =+'[3]F-2. MATRIZ PROB E IMPACTO.'!G12 -> 0.4 | I18: X
C19: Muy alta | D19: =+'[3]F-2. MATRIZ PROB E IMPACTO.'!C7 -> 0.9 | G19: Muy alto | H19: =+'[3]F-2. MATRIZ PROB E IMPACTO.'!H12 -> 0.8
C20: =IFERROR(INDEX(C15:E19,MATCH(IF(E15>0,E15,IF(E16>0,E16,IF(E17>0,E17,IF(E18>0,E18,IF(E19>0,E19,""))))),E15:E19,0),1),"") -> Moderada | E20: =IFERROR(INDEX(D15:E19,MATCH(IF(E15>0,E15,IF(E16>0,E16,IF(E17>0,E17,IF(E18>0,E18,IF(E19>0,E19,""))))),E15:E19,0),1),"") -> 0.5 | G20: =IFERROR(INDEX(G15:I19,MATCH(IF(I15>0,I15,IF(I16>0,I16,IF(I17>0,I17,IF(I18>0,I18,IF(I19>0,I19,""))))),I15:I19,0),1),"") -> Alto | I20: =IFERROR(INDEX(H15:I19,MATCH(IF(I15>0,I15,IF(I16>0,I16,IF(I17>0,I17,IF(I18>0,I18,IF(I19>0,I19,""))))),I15:I19,0),1),"") -> 0.4
B21: 4.3 | C21: PRIORIZACIÓN DEL RIESGO
C22: Puntuación del Riesgo =Probabilidad x Impacto | E22: =+IFERROR(ROUND(E20*I20,3),0) -> 0.2 | F22: Prioridad del Riesgo | H22: =+IF(E22=0,"",IF(AND(E22>=MIN('F-2. MATRIZ PROB E IMPACTO.'!F7:H7,'F-2. MATRIZ PROB E IMPACTO.'!G8:H8,'F-2. MATRIZ PROB E IMPACTO.'!G9:H9,'F-2. MATRIZ PROB E IMPACTO.'!H10),E22<=MAX('F-2. MATRIZ PROB E IMPACTO.'!F7:H7,'F-2. MATRIZ PROB E IMPACTO.'!G8:H8,'F-2. MATRIZ PROB E IMPACTO.'!G9:H9,'F-2. MATRIZ PROB E IMPACTO.'!H10)),"Alta Prioridad",IF(AND(E22>=MIN('F-2. MATRIZ PROB E IMPACTO.'!E7:E8,'F-2. MATRIZ PROB E IMPACTO.'!F8:F10,'F-2. MATRIZ PROB E IMPACTO.'!G10,'F-2. MATRIZ PROB E IMPACTO.'!H11),E22<=MAX('F-2. MATRIZ PROB E IMPACTO.'!E7:E8,'F-2. MATRIZ PROB E IMPACTO.'!F8:F10,'F-2. MATRIZ PROB E IMPACTO.'!G10,'F-2. MATRIZ PROB E IMPACTO.'!H11)),"Prioridad Moderada",IF(AND(E22>=MIN('F-2. MATRIZ PROB E IMPACTO.'!D7:D11,'F-2. MATRIZ PROB E IMPACTO.'!E9:E11,'F-2. MATRIZ PROB E IMPACTO.'!F11,'F-2. MATRIZ PROB E IMPACTO.'!G11),E22<=MAX('F-2. MATRIZ PROB E IMPACTO.'!D7:D11,'F-2. MATRIZ PROB E IMPACTO.'!E9:E11,'F-2. MATRIZ PROB E IMPACTO.'!F11,'F-2. MATRIZ PROB E IMPACTO.'!G11,)),"Baja Prioridad","")))) -> Alta Prioridad | L22: =+E25 -> Mitigar Riesgo | M22: =+G25 -> 0
L23: =+E26 -> Aceptar Riesgo | M23: =+G26 -> X
A24: 5 | B24: RESPUESTA A LOS RIESGOS | L24: =+H25 -> Evitar Riesgo | M24: =+I25 -> 0
B25: 5.1 | C25: ESTRATEGIA | E25: Mitigar Riesgo | H25: Evitar Riesgo | L25: =+H26 -> Transferir Riesgo | M25: =+I26 -> 0
E26: Aceptar Riesgo | G26: X | H26: Transferir Riesgo
B27: 5.2 | C27: DISPARADOR DE RIESGO | E27: EJECUTOR ANOTA EN EL CUADERNO DE OBRA LA OCURRENCIA | M27: =IFERROR(INDEX(L22:M26,MATCH(IF(M22>0,M22,IF(M23>0,M23,IF(M24>0,M24,IF(M25>0,M25,IF(M26>0,M26,""))))),M22:M26,0),1),"") -> Aceptar Riesgo
B28: 5.3 | C28: ACCIONES PARA DAR RESPUESTA AL RIESGO | E28: * AREA DE OBRAS EQUIPAMIENTO Y MANTENIMIENTO EVALUA SI CONSULTA DEBE SER ATENDIDA POR LA SUPERVISION Y DE SER EL CASO EXIGE A LA SUPERVISION ATENDER LA CONSULTA. * CONSULTAS SUSTANCIALES SOBRE OCURRENCIAS DE OBRA SON DIRECTAMENTE NOTIFICADAS AL PROYECTISTA O COORDINADOR DE PROYECTO POR EL AREA DE OBRAS EQUIPAMIENTO Y MANTENIMIENTO. *ANTE FALTA DE ATENCION A CONSULTA LA AREA DE ESTUDIOS Y PROYECTOS TOMA ACCIONES PARA ATENCION PRIORITARIA A TRAVES DE ESPECIALISTA TENIENDO EN CUENTA LOS PLAZOS DE LEY.

Sheet 008
A1: Anexo N° 01 | J1: Regresar
A2: Formato para identificar, analizar y dar respuesta a riesgos
A3: 1 | B3: NÚMERO Y FECHA DEL DOCUMENTO | D3: Número | F3: 08
D4: Fecha | F4: ='001'!F4:I4 -> ABRIL DEL 2022
A5: 2 | B5: DATOS GENERALES DEL PROYECTO | D5: Nombre del Proyecto | F5: ='001'!F5:I5 -> ‘‘MEJORAMIENTO DE LAS VÍAS DE CIRCULACIÓN INTERNA, SEÑALIZACIÓN Y ORNATO EN LA SEDE CENTRAL DE LA UNIVERSIDAD NACIONAL DE EDUCACIÓN ENRIQUE GUZMÁN Y VALLE’’ – SALDO DE OBRA – 1ERA ETAPA
D6: Ubicación Geográfica | F6: ='001'!F6:I6 -> DISTRITO CHOSICA, PROVINCIA LURIGANCHO, DEPARTAMENTO LIMA
A7: 3 | B7: IDENTIFICACIÓN DE RIESGOS
B8: 3.1 | C8: CÓDIGO DE RIESGO | E8: =+'F-3. ASIGNACION RIESGOS '!A16 -> VIAS-UNE-008
B9: 3.2 | C9: DESCRIPCIÓN DEL RIESGO | E9: =+'F-3. ASIGNACION RIESGOS '!B16 -> RIESGO DE ACCIDENTES GRAVES Y MUY GRAVES PRODUCTO DE LA EJECUCION DE LA OBRA
B10: 3.3 | C10: CAUSA(S) GENERADORA(S) | E10: Causa N° 1 | G10: EQUIPO DE PROTECCION PERSONAL INADECUADO O INEXISTENTE
E11: Causa N° 2 | G11: PERSONAL NO CUENTA CON CAPACITACION Y ENTRENAMIENTO EN TEMAS DE SEGURIDAD Y SALUD OCUPACIONAL
E12: Causa N° 3 | G12: CONDICIONES INSEGURAS - FALTA DE SEÑALIZACION
E13: Causa N° 4 | G13: NO HAY PREVENCIONISTA DE RIESGO EN LA OBRA
E14: Causa N° 5 | G14: NEGLIGENCIA DEL PERSONAL OBRERO
A15: 4 | B15: ANÁLISIS CUALITATIVO DE RIESGOS
B16: 4.1 | C16: PROBABILIDAD DE OCURRENCIA | F16: 4.2 | G16: IMPACTO EN LA EJECUCIÓN DE LA OBRA
C17: Muy baja | D17: =+'[4]F-2. MATRIZ PROB E IMPACTO.'!C11 -> 0.1 | G17: Muy bajo | H17: =+'[4]F-2. MATRIZ PROB E IMPACTO.'!D12 -> 0.05
C18: Baja | D18: =+'[4]F-2. MATRIZ PROB E IMPACTO.'!C10 -> 0.3 | G18: Bajo | H18: =+'[4]F-2. MATRIZ PROB E IMPACTO.'!E12 -> 0.1
C19: Moderada | D19: =+'[4]F-2. MATRIZ PROB E IMPACTO.'!C9 -> 0.5 | E19: X | G19: Moderado | H19: =+'[4]F-2. MATRIZ PROB E IMPACTO.'!F12 -> 0.2
C20: Alta | D20: =+'[4]F-2. MATRIZ PROB E IMPACTO.'!C8 -> 0.7 | G20: Alto | H20: =+'[4]F-2. MATRIZ PROB E IMPACTO.'!G12 -> 0.4
C21: Muy alta | D21: =+'[4]F-2. MATRIZ PROB E IMPACTO.'!C7 -> 0.9 | G21: Muy alto | H21: =+'[4]F-2. MATRIZ PROB E IMPACTO.'!H12 -> 0.8 | I21: X
C22: =IFERROR(INDEX(C17:E21,MATCH(IF(E17>0,E17,IF(E18>0,E18,IF(E19>0,E19,IF(E20>0,E20,IF(E21>0,E21,""))))),E17:E21,0),1),"") -> Moderada | E22: =IFERROR(INDEX(D17:E21,MATCH(IF(E17>0,E17,IF(E18>0,E18,IF(E19>0,E19,IF(E20>0,E20,IF(E21>0,E21,""))))),E17:E21,0),1),"") -> 0.5 | G22: =IFERROR(INDEX(G17:I21,MATCH(IF(I17>0,I17,IF(I18>0,I18,IF(I19>0,I19,IF(I20>0,I20,IF(I21>0,I21,""))))),I17:I21,0),1),"") -> Muy alto | I22: =IFERROR(INDEX(H17:I21,MATCH(IF(I17>0,I17,IF(I18>0,I18,IF(I19>0,I19,IF(I20>0,I20,IF(I21>0,I21,""))))),I17:I21,0),1),"") -> 0.8
B23: 4.3 | C23: PRIORIZACIÓN DEL RIESGO
C24: Puntuación del Riesgo =Probabilidad x Impacto | E24: =+IFERROR(ROUND(E22*I22,3),0) -> 0.4 | F24: Prioridad del Riesgo | H24: =+IF(E24=0,"",IF(AND(E24>=MIN('[4]F-2. MATRIZ PROB E IMPACTO.'!F7:H7,'[4]F-2. MATRIZ PROB E IMPACTO.'!G8:H8,'[4]F-2. MATRIZ PROB E IMPACTO.'!G9:H9,'[4]F-2. MATRIZ PROB E IMPACTO.'!H10),E24<=MAX('[4]F-2. MATRIZ PROB E IMPACTO.'!F7:H7,'[4]F-2. MATRIZ PROB E IMPACTO.'!G8:H8,'[4]F-2. MATRIZ PROB E IMPACTO.'!G9:H9,'[4]F-2. MATRIZ PROB E IMPACTO.'!H10)),"Alta Prioridad",IF(AND(E24>=MIN('[4]F-2. MATRIZ PROB E IMPACTO.'!E7:E8,'[4]F-2. MATRIZ PROB E IMPACTO.'!F8:F10,'[4]F-2. MATRIZ PROB E IMPACTO.'!G10,'[4]F-2. MATRIZ PROB E IMPACTO.'!H11),E24<=MAX('[4]F-2. MATRIZ PROB E IMPACTO.'!E7:E8,'[4]F-2. MATRIZ PROB E IMPACTO.'!F8:F10,'[4]F-2. MATRIZ PROB E IMPACTO.'!G10,'[4]F-2. MATRIZ PROB E IMPACTO.'!H11)),"Prioridad Moderada",IF(AND(E24>=MIN('[4]F-2. MATRIZ PROB E IMPACTO.'!D7:D11,'[4]F-2. MATRIZ PROB E IMPACTO.'!E9:E11,'[4]F-2. MATRIZ PROB E IMPACTO.'!F11,'[4]F-2. MATRIZ PROB E IMPACTO.'!G11),E24<=MAX('[4]F-2. MATRIZ PROB E IMPACTO.'!D7:D11,'[4]F-2. MATRIZ PROB E IMPACTO.'!E9:E11,'[4]F-2. MATRIZ PROB E IMPACTO.'!F11,'[4]F-2. MATRIZ PROB E IMPACTO.'!G11,)),"Baja Prioridad","")))) -> Alta Prioridad | L24: =+E27 -> Mitigar Riesgo | M24: =+G27 -> 0
L25: =+E28 -> Aceptar Riesgo | M25: =+G28 -> 0
A26: 5 | B26: RESPUESTA A LOS RIESGOS | L26: =+H27 -> Evitar Riesgo | M26: =+I27 -> 0
B27: 5.1 | C27: ESTRATEGIA | E27: Mitigar Riesgo | H27: Evitar Riesgo | L27: =+H28 -> Transferir Riesgo | M27: =+I28 -> X
E28: Aceptar Riesgo | H28: Transferir Riesgo | I28: X
B29: 5.2 | C29: DISPARADOR DE RIESGO | E29: SE PRODUCE EL ACCIDENTE | M29: =IFERROR(INDEX(L24:M28,MATCH(IF(M24>0,M24,IF(M25>0,M25,IF(M26>0,M26,IF(M27>0,M27,IF(M28>0,M28,""))))),M24:M28,0),1),"") -> Transferir Riesgo
B30: 5.3 | C30: ACCIONES PARA DAR RESPUESTA AL RIESGO | E30: *ES OBLIGACION DEL EJECUTOR QUE TODO SU PERSONAL CUENTE CON SEGUROS CONTRA TODO RIESGO (SCTR) * EJECUTOR REALIZA CHARLAS DIARIAS DE INDUCCION *SUPERVISION EXIGE PRESENCIA PERMANENTE DE PREVENCIONISTA DE RIESGO *EJECUTOR IMPLEMENTA PLAN DE CONTINGENCIA EN CASO DE ACCIDENTES EN OBRA * EJECUTOR DISEÑA E IMPLEMENTA UN PLAN DE SEGURIDAD Y SALUD EN EL TRABAJO. * EL EJECUTOR ES RESPONSABLE DE CUBRIR LOS COSTOS POR ACCIDENTES PRODUCTO DE LA EJECUCION DE LA OBRA . * EJECUTOR DEBE CONTRATAR Y PRESENTAR SEGUROS OBLIGATORIOS PARA EL PERSONAL ENCARGADO DE LA CONSTRUCCION Y MANTENERLO VIGENTE DURANTE EL PERIODO DE EJECUCION DE LA OBRA * SUPERVISION SOLICITA, INSPECCIONA Y EXIGE CUMPLIMIENTO DE PLAN DE SEGURIDAD Y SALUD EN EL TRABAJO. * EJECUTOR DISEÑA E IMPLEMENTA UN PLAN DE EMERGENCIA Y PRIMEROS AUXILIOS (ANTE POSIBLE ACCIDENTE DE OBREROS POR TRABAJOS REALIZADOS EN LA EJECUCION DE OBRA). * EJECUTOR CUENTA CON EQUIPOS DE PRIMEROS AUXILIOS Y MOVILIDAD EXCLUSIVA PARA TRASLADO DE PERSONAL OBRERO, TECNICO, PROFESIONAL U OTRAS PERSONAS ACCIDENTADAS PRODUCTO DE LA EJECUCION DE LAS OBRAS, A CENTRO DE SALUD, CLINICA U HOSPITAL.

Sheet 009
A1: Anexo N° 01 | J1: Regresar
A2: Formato para identificar, analizar y dar respuesta a riesgos
A3: 1 | B3: NÚMERO Y FECHA DEL DOCUMENTO | D3: Número | F3: 09
D4: Fecha | F4: ='001'!F4:I4 -> ABRIL DEL 2022
A5: 2 | B5: DATOS GENERALES DEL PROYECTO | D5: Nombre del Proyecto | F5: ='001'!F5:I5 -> ‘‘MEJORAMIENTO DE LAS VÍAS DE CIRCULACIÓN INTERNA, SEÑALIZACIÓN Y ORNATO EN LA SEDE CENTRAL DE LA UNIVERSIDAD NACIONAL DE EDUCACIÓN ENRIQUE GUZMÁN Y VALLE’’ – SALDO DE OBRA – 1ERA ETAPA
D6: Ubicación Geográfica | F6: ='001'!F6:I6 -> DISTRITO CHOSICA, PROVINCIA LURIGANCHO, DEPARTAMENTO LIMA
A7: 3 | B7: IDENTIFICACIÓN DE RIESGOS
B8: 3.1 | C8: CÓDIGO DE RIESGO | E8: =+'F-3. ASIGNACION RIESGOS '!A17 -> VIAS-UNE-009
B9: 3.2 | C9: DESCRIPCIÓN DEL RIESGO | E9: =+'F-3. ASIGNACION RIESGOS '!B17 -> DEFICIENTE GESTION OPERATIVA Y ADMINISTRATIVA DE LA OBRA
B10: 3.3 | C10: CAUSA(S) GENERADORA(S) | E10: Causa N° 1 | G10: PERSONAL TECNICO Y PROFESIONAL OFERTADO POR EL EJECUTOR NO SE ENCUENTRA EN OBRA
E11: Causa N° 2 | G11: PERSONAL TECNICO Y PROFESIONAL DEL EJECUTOR NO CUENTA CON LOS MEDIOS O RECURSOS PARA DESARROLLAR SU LABOR
E12: Causa N° 3 | G12: OMISION DE NORMAS DE CALIDAD Y BUENAS PRACTICAS CONSTRUCTIVAS
E13: Causa N° 4 | G13: CONTROL INADECUADO Y/O INOPORTUNO DE LA SUPERVISION
A14: 4 | B14: ANÁLISIS CUALITATIVO DE RIESGOS
B15: 4.1 | C15: PROBABILIDAD DE OCURRENCIA | F15: 4.2 | G15: IMPACTO EN LA EJECUCIÓN DE LA OBRA
C16: Muy baja | D16: =+'[4]F-2. MATRIZ PROB E IMPACTO.'!C11 -> 0.1 | G16: Muy bajo | H16: =+'[4]F-2. MATRIZ PROB E IMPACTO.'!D12 -> 0.05
C17: Baja | D17: =+'[4]F-2. MATRIZ PROB E IMPACTO.'!C10 -> 0.3 | G17: Bajo | H17: =+'[4]F-2. MATRIZ PROB E IMPACTO.'!E12 -> 0.1
C18: Moderada | D18: =+'[4]F-2. MATRIZ PROB E IMPACTO.'!C9 -> 0.5 | E18: X | G18: Moderado | H18: =+'[4]F-2. MATRIZ PROB E IMPACTO.'!F12 -> 0.2
C19: Alta | D19: =+'[4]F-2. MATRIZ PROB E IMPACTO.'!C8 -> 0.7 | G19: Alto | H19: =+'[4]F-2. MATRIZ PROB E IMPACTO.'!G12 -> 0.4 | I19: x
C20: Muy alta | D20: =+'[4]F-2. MATRIZ PROB E IMPACTO.'!C7 -> 0.9 | G20: Muy alto | H20: =+'[4]F-2. MATRIZ PROB E IMPACTO.'!H12 -> 0.8
C21: =IFERROR(INDEX(C16:E20,MATCH(IF(E16>0,E16,IF(E17>0,E17,IF(E18>0,E18,IF(E19>0,E19,IF(E20>0,E20,""))))),E16:E20,0),1),"") -> Moderada | E21: =IFERROR(INDEX(D16:E20,MATCH(IF(E16>0,E16,IF(E17>0,E17,IF(E18>0,E18,IF(E19>0,E19,IF(E20>0,E20,""))))),E16:E20,0),1),"") -> 0.5 | G21: =IFERROR(INDEX(G16:I20,MATCH(IF(I16>0,I16,IF(I17>0,I17,IF(I18>0,I18,IF(I19>0,I19,IF(I20>0,I20,""))))),I16:I20,0),1),"") -> Alto | I21: =IFERROR(INDEX(H16:I20,MATCH(IF(I16>0,I16,IF(I17>0,I17,IF(I18>0,I18,IF(I19>0,I19,IF(I20>0,I20,""))))),I16:I20,0),1),"") -> 0.4
B22: 4.3 | C22: PRIORIZACIÓN DEL RIESGO
C23: Puntuación del Riesgo =Probabilidad x Impacto | E23: =+IFERROR(ROUND(E21*I21,3),0) -> 0.2 | F23: Prioridad del Riesgo | H23: =+IF(E23=0,"",IF(AND(E23>=MIN('[4]F-2. MATRIZ PROB E IMPACTO.'!F7:H7,'[4]F-2. MATRIZ PROB E IMPACTO.'!G8:H8,'[4]F-2. MATRIZ PROB E IMPACTO.'!G9:H9,'[4]F-2. MATRIZ PROB E IMPACTO.'!H10),E23<=MAX('[4]F-2. MATRIZ PROB E IMPACTO.'!F7:H7,'[4]F-2. MATRIZ PROB E IMPACTO.'!G8:H8,'[4]F-2. MATRIZ PROB E IMPACTO.'!G9:H9,'[4]F-2. MATRIZ PROB E IMPACTO.'!H10)),"Alta Prioridad",IF(AND(E23>=MIN('[4]F-2. MATRIZ PROB E IMPACTO.'!E7:E8,'[4]F-2. MATRIZ PROB E IMPACTO.'!F8:F10,'[4]F-2. MATRIZ PROB E IMPACTO.'!G10,'[4]F-2. MATRIZ PROB E IMPACTO.'!H11),E23<=MAX('[4]F-2. MATRIZ PROB E IMPACTO.'!E7:E8,'[4]F-2. MATRIZ PROB E IMPACTO.'!F8:F10,'[4]F-2. MATRIZ PROB E IMPACTO.'!G10,'[4]F-2. MATRIZ PROB E IMPACTO.'!H11)),"Prioridad Moderada",IF(AND(E23>=MIN('[4]F-2. MATRIZ PROB E IMPACTO.'!D7:D11,'[4]F-2. MATRIZ PROB E IMPACTO.'!E9:E11,'[4]F-2. MATRIZ PROB E IMPACTO.'!F11,'[4]F-2. MATRIZ PROB E IMPACTO.'!G11),E23<=MAX('[4]F-2. MATRIZ PROB E IMPACTO.'!D7:D11,'[4]F-2. MATRIZ PROB E IMPACTO.'!E9:E11,'[4]F-2. MATRIZ PROB E IMPACTO.'!F11,'[4]F-2. MATRIZ PROB E IMPACTO.'!G11,)),"Baja Prioridad","")))) -> Alta Prioridad | L23: =+E26 -> Mitigar Riesgo | M23: =+G26 -> 0
L24: =+E27 -> Aceptar Riesgo | M24: =+G27 -> 0
A25: 5 | B25: RESPUESTA A LOS RIESGOS | L25: =+H26 -> Evitar Riesgo | M25: =+I26 -> 0
B26: 5.1 | C26: ESTRATEGIA | E26: Mitigar Riesgo | H26: Evitar Riesgo | L26: =+H27 -> Transferir Riesgo | M26: =+I27 -> X
E27: Aceptar Riesgo | H27: Transferir Riesgo | I27: X
B28: 5.2 | C28: DISPARADOR DE RIESGO | E28: SE EVIDENCIAN DEFECTOS DURANTE EL PROCESO CONSTRUCTIVO Y MALA ADMINISTRACION DE LA OBRA | M28: =IFERROR(INDEX(L23:M27,MATCH(IF(M23>0,M23,IF(M24>0,M24,IF(M25>0,M25,IF(M26>0,M26,IF(M27>0,M27,""))))),M23:M27,0),1),"") -> Transferir Riesgo
B29: 5.3 | C29: ACCIONES PARA DAR RESPUESTA AL RIESGO | E29: * EXIGIR AL EJECUTOR LA PRESENCIA DE PERSONAL CLAVE. * EXIGIR USO DE RECURSOS CONSIDERADOS EN EL COSTO DIRECTO E INDIRECTO DE LA OBRA * SUPERVISION EVALUA Y SOLICITA EL CAMBIO DE PERSONAL PROFESIONAL Y TECNICO * SUPERVISION ESTABLECE MECANISMOS DE ASEGURAMIENTO DE CUMPLIMIENTO DE LAS NORMAS TECNICAS DE CALIDAD, SEGURIDAD SALUD Y BUENAS PRACTICAS CONSTRUCTIVAS, SEGUN NORMATIVA VIGENTE. * VERIFICAR A TRAVES DEL SUPERVISOR, LA CORRECTA GESTION OPERATIVA Y ADMINISTRATIVA DE LA OBRA MEDIANTE VISITAS, REUNIONES, ENVIO DE MATERIAL VISUAL U OTROS MECANISMOS QUE PERMITAN CONOCER EL ESTADO SITUACIONAL DE LA OBRA (AVANCE DE OBRA)

Sheet 010
A1: Anexo N° 01 | J1: Regresar
A2: Formato para identificar, analizar y dar respuesta a riesgos
A3: 1 | B3: NÚMERO Y FECHA DEL DOCUMENTO | D3: Número | F3: 10
D4: Fecha | F4: ='001'!F4:I4 -> ABRIL DEL 2022
A5: 2 | B5: DATOS GENERALES DEL PROYECTO | D5: Nombre del Proyecto | F5: ='001'!F5:I5 -> ‘‘MEJORAMIENTO DE LAS VÍAS DE CIRCULACIÓN INTERNA, SEÑALIZACIÓN Y ORNATO EN LA SEDE CENTRAL DE LA UNIVERSIDAD NACIONAL DE EDUCACIÓN ENRIQUE GUZMÁN Y VALLE’’ – SALDO DE OBRA – 1ERA ETAPA
D6: Ubicación Geográfica | F6: ='001'!F6:I6 -> DISTRITO CHOSICA, PROVINCIA LURIGANCHO, DEPARTAMENTO LIMA
A7: 3 | B7: IDENTIFICACIÓN DE RIESGOS
B8: 3.1 | C8: CÓDIGO DE RIESGO | E8: =+'F-3. ASIGNACION RIESGOS '!A18 -> VIAS-UNE-010
B9: 3.2 | C9: DESCRIPCIÓN DEL RIESGO | E9: =+'F-3. ASIGNACION RIESGOS '!B18 -> RIESGO DE CONTAMINACION DE SUELO, AIRE Y AGUA
B10: 3.3 | C10: CAUSA(S) GENERADORA(S) | E10: Causa N° 1 | G10: MAL USO O MAL ESTADO DE MAQUINARIA Y EQUIPOS.
E11: Causa N° 2 | G11: SE INCUMPLEN NORMATIVA Y MEDIDAS PAR EVITAR O MITIGAR LA CONTAMINACION AMBIENTAL.
E12: Causa N° 3 | G12: PERSONAL DE OBRA NO ESTA CAPACITADO EN TEMAS AMBIENTALES.
A13: 4 | B13: ANÁLISIS CUALITATIVO DE RIESGOS
B14: 4.1 | C14: PROBABILIDAD DE OCURRENCIA | F14: 4.2 | G14: IMPACTO EN LA EJECUCIÓN DE LA OBRA
C15: Muy baja | D15: =+'[4]F-2. MATRIZ PROB E IMPACTO.'!C11 -> 0.1 | G15: Muy bajo | H15: =+'[4]F-2. MATRIZ PROB E IMPACTO.'!D12 -> 0.05
C16: Baja | D16: =+'[4]F-2. MATRIZ PROB E IMPACTO.'!C10 -> 0.3 | G16: Bajo | H16: =+'[4]F-2. MATRIZ PROB E IMPACTO.'!E12 -> 0.1
C17: Moderada | D17: =+'[4]F-2. MATRIZ PROB E IMPACTO.'!C9 -> 0.5 | E17: X | G17: Moderado | H17: =+'[4]F-2. MATRIZ PROB E IMPACTO.'!F12 -> 0.2
C18: Alta | D18: =+'[4]F-2. MATRIZ PROB E IMPACTO.'!C8 -> 0.7 | G18: Alto | H18: =+'[4]F-2. MATRIZ PROB E IMPACTO.'!G12 -> 0.4 | I18: X
C19: Muy alta | D19: =+'[4]F-2. MATRIZ PROB E IMPACTO.'!C7 -> 0.9 | G19: Muy alto | H19: =+'[4]F-2. MATRIZ PROB E IMPACTO.'!H12 -> 0.8
C20: =IFERROR(INDEX(C15:E19,MATCH(IF(E15>0,E15,IF(E16>0,E16,IF(E17>0,E17,IF(E18>0,E18,IF(E19>0,E19,""))))),E15:E19,0),1),"") -> Moderada | E20: =IFERROR(INDEX(D15:E19,MATCH(IF(E15>0,E15,IF(E16>0,E16,IF(E17>0,E17,IF(E18>0,E18,IF(E19>0,E19,""))))),E15:E19,0),1),"") -> 0.5 | G20: =IFERROR(INDEX(G15:I19,MATCH(IF(I15>0,I15,IF(I16>0,I16,IF(I17>0,I17,IF(I18>0,I18,IF(I19>0,I19,""))))),I15:I19,0),1),"") -> Alto | I20: =IFERROR(INDEX(H15:I19,MATCH(IF(I15>0,I15,IF(I16>0,I16,IF(I17>0,I17,IF(I18>0,I18,IF(I19>0,I19,""))))),I15:I19,0),1),"") -> 0.4
B21: 4.3 | C21: PRIORIZACIÓN DEL RIESGO
C22: Puntuación del Riesgo =Probabilidad x Impacto | E22: =+IFERROR(ROUND(E20*I20,3),0) -> 0.2 | F22: Prioridad del Riesgo | H22: =+IF(E22=0,"",IF(AND(E22>=MIN('[4]F-2. MATRIZ PROB E IMPACTO.'!F7:H7,'[4]F-2. MATRIZ PROB E IMPACTO.'!G8:H8,'[4]F-2. MATRIZ PROB E IMPACTO.'!G9:H9,'[4]F-2. MATRIZ PROB E IMPACTO.'!H10),E22<=MAX('[4]F-2. MATRIZ PROB E IMPACTO.'!F7:H7,'[4]F-2. MATRIZ PROB E IMPACTO.'!G8:H8,'[4]F-2. MATRIZ PROB E IMPACTO.'!G9:H9,'[4]F-2. MATRIZ PROB E IMPACTO.'!H10)),"Alta Prioridad",IF(AND(E22>=MIN('[4]F-2. MATRIZ PROB E IMPACTO.'!E7:E8,'[4]F-2. MATRIZ PROB E IMPACTO.'!F8:F10,'[4]F-2. MATRIZ PROB E IMPACTO.'!G10,'[4]F-2. MATRIZ PROB E IMPACTO.'!H11),E22<=MAX('[4]F-2. MATRIZ PROB E IMPACTO.'!E7:E8,'[4]F-2. MATRIZ PROB E IMPACTO.'!F8:F10,'[4]F-2. MATRIZ PROB E IMPACTO.'!G10,'[4]F-2. MATRIZ PROB E IMPACTO.'!H11)),"Prioridad Moderada",IF(AND(E22>=MIN('[4]F-2. MATRIZ PROB E IMPACTO.'!D7:D11,'[4]F-2. MATRIZ PROB E IMPACTO.'!E9:E11,'[4]F-2. MATRIZ PROB E IMPACTO.'!F11,'[4]F-2. MATRIZ PROB E IMPACTO.'!G11),E22<=MAX('[4]F-2. MATRIZ PROB E IMPACTO.'!D7:D11,'[4]F-2. MATRIZ PROB E IMPACTO.'!E9:E11,'[4]F-2. MATRIZ PROB E IMPACTO.'!F11,'[4]F-2. MATRIZ PROB E IMPACTO.'!G11,)),"Baja Prioridad","")))) -> Alta Prioridad | L22: =+E24 -> Mitigar Riesgo | M22: =+G24 -> 0
A23: 5 | B23: RESPUESTA A LOS RIESGOS | L23: =+H24 -> Evitar Riesgo | M23: =+I24 -> 0
B24: 5.1 | C24: ESTRATEGIA | E24: Mitigar Riesgo | H24: Evitar Riesgo | L24: =+H25 -> Transferir Riesgo | M24: =+I25 -> X
E25: Aceptar Riesgo | H25: Transferir Riesgo | I25: X
B26: 5.2 | C26: DISPARADOR DE RIESGO | E26: NO SE CUMPLE CON LIMITES PERMISIBLES DE CONTAMINACION - SUPERVISOR DETECTA CONTAMINACION - RECLAMOS O DENUNCIA POR PARTE DE AUTORIDADES O DE LA COMUNIDAD | M26: =IFERROR(INDEX(L22:M25,MATCH(IF(M22>0,M22,IF(#REF!>0,#REF!,IF(M23>0,M23,IF(M24>0,M24,IF(M25>0,M25,""))))),M22:M25,0),1),"") -> 
B27: 5.3 | C27: ACCIONES PARA DAR RESPUESTA AL RIESGO | E27: *SUPERVISION CONTROLA LA EJECUCION DEL PLAN DE MANEJO AMBIENTAL Y DE SER NECESARIO ADECUA EL PLAN A LAS NECESIDADES REALES. *SUPERVISION CONTROLA EL USO DE LA MAQUINARIAS Y HORARIOS DE TRABAJO. * EJECUTOR A SU COSTO IMPLEMENTA MEDIDAS PARA CONTROLAR LOS IMPACTOS NEGATIVOS PROPIOS DE SUS ACTIVIDADES CONSTRUCTIVAS Y REPARA DAÑOS CAUSADOS AL MEDIO AMBIENTE.

Sheet 011
A1: Anexo N° 01 | J1: Regresar
A2: Formato para identificar, analizar y dar respuesta a riesgos
A3: 1 | B3: NÚMERO Y FECHA DEL DOCUMENTO | D3: Número | F3: 11
D4: Fecha | F4: ='001'!F4:I4 -> ABRIL DEL 2022
A5: 2 | B5: DATOS GENERALES DEL PROYECTO | D5: Nombre del Proyecto | F5: ='001'!F5:I5 -> ‘‘MEJORAMIENTO DE LAS VÍAS DE CIRCULACIÓN INTERNA, SEÑALIZACIÓN Y ORNATO EN LA SEDE CENTRAL DE LA UNIVERSIDAD NACIONAL DE EDUCACIÓN ENRIQUE GUZMÁN Y VALLE’’ – SALDO DE OBRA – 1ERA ETAPA
D6: Ubicación Geográfica | F6: ='001'!F6:I6 -> DISTRITO CHOSICA, PROVINCIA LURIGANCHO, DEPARTAMENTO LIMA
A7: 3 | B7: IDENTIFICACIÓN DE RIESGOS
B8: 3.1 | C8: CÓDIGO DE RIESGO | E8: =+'F-3. ASIGNACION RIESGOS '!A19 -> VIAS-UNE-011
B9: 3.2 | C9: DESCRIPCIÓN DEL RIESGO | E9: =+'F-3. ASIGNACION RIESGOS '!B19 -> CONCRETO NO CUMPLE CON RESISTENCIA A LA COMPRESION ESPECIFICADA
B10: 3.3 | C10: CAUSA(S) GENERADORA(S) | E10: Causa N° 1 | G10: MALA CALIDAD DE AGREGADOS
E11: Causa N° 2 | G11: CONDICIONES CLIMATICAS AFECTAN MEZCLA
E12: Causa N° 3 | G12: NO SE CUMPLE CON EL DISEÑO DE MEZCLA
A13: 4 | B13: ANÁLISIS CUALITATIVO DE RIESGOS
B14: 4.1 | C14: PROBABILIDAD DE OCURRENCIA | F14: 4.2 | G14: IMPACTO EN LA EJECUCIÓN DE LA OBRA
C15: Muy baja | D15: =+'[4]F-2. MATRIZ PROB E IMPACTO.'!C11 -> 0.1 | G15: Muy bajo | H15: =+'[4]F-2. MATRIZ PROB E IMPACTO.'!D12 -> 0.05
C16: Baja | D16: =+'[4]F-2. MATRIZ PROB E IMPACTO.'!C10 -> 0.3 | E16: X | G16: Bajo | H16: =+'[4]F-2. MATRIZ PROB E IMPACTO.'!E12 -> 0.1
C17: Moderada | D17: =+'[4]F-2. MATRIZ PROB E IMPACTO.'!C9 -> 0.5 | G17: Moderado | H17: =+'[4]F-2. MATRIZ PROB E IMPACTO.'!F12 -> 0.2
C18: Alta | D18: =+'[4]F-2. MATRIZ PROB E IMPACTO.'!C8 -> 0.7 | G18: Alto | H18: =+'[4]F-2. MATRIZ PROB E IMPACTO.'!G12 -> 0.4
C19: Muy alta | D19: =+'[4]F-2. MATRIZ PROB E IMPACTO.'!C7 -> 0.9 | G19: Muy alto | H19: =+'[4]F-2. MATRIZ PROB E IMPACTO.'!H12 -> 0.8 | I19: X
C20: =IFERROR(INDEX(C15:E19,MATCH(IF(E15>0,E15,IF(E16>0,E16,IF(E17>0,E17,IF(E18>0,E18,IF(E19>0,E19,""))))),E15:E19,0),1),"") -> Baja | E20: =IFERROR(INDEX(D15:E19,MATCH(IF(E15>0,E15,IF(E16>0,E16,IF(E17>0,E17,IF(E18>0,E18,IF(E19>0,E19,""))))),E15:E19,0),1),"") -> 0.3 | G20: =IFERROR(INDEX(G15:I19,MATCH(IF(I15>0,I15,IF(I16>0,I16,IF(I17>0,I17,IF(I18>0,I18,IF(I19>0,I19,""))))),I15:I19,0),1),"") -> Muy alto | I20: =IFERROR(INDEX(H15:I19,MATCH(IF(I15>0,I15,IF(I16>0,I16,IF(I17>0,I17,IF(I18>0,I18,IF(I19>0,I19,""))))),I15:I19,0),1),"") -> 0.8
B21: 4.3 | C21: PRIORIZACIÓN DEL RIESGO
C22: Puntuación del Riesgo =Probabilidad x Impacto | E22: =+IFERROR(ROUND(E20*I20,3),0) -> 0.24 | F22: Prioridad del Riesgo | H22: =+IF(E22=0,"",IF(AND(E22>=MIN('[4]F-2. MATRIZ PROB E IMPACTO.'!F7:H7,'[4]F-2. MATRIZ PROB E IMPACTO.'!G8:H8,'[4]F-2. MATRIZ PROB E IMPACTO.'!G9:H9,'[4]F-2. MATRIZ PROB E IMPACTO.'!H10),E22<=MAX('[4]F-2. MATRIZ PROB E IMPACTO.'!F7:H7,'[4]F-2. MATRIZ PROB E IMPACTO.'!G8:H8,'[4]F-2. MATRIZ PROB E IMPACTO.'!G9:H9,'[4]F-2. MATRIZ PROB E IMPACTO.'!H10)),"Alta Prioridad",IF(AND(E22>=MIN('[4]F-2. MATRIZ PROB E IMPACTO.'!E7:E8,'[4]F-2. MATRIZ PROB E IMPACTO.'!F8:F10,'[4]F-2. MATRIZ PROB E IMPACTO.'!G10,'[4]F-2. MATRIZ PROB E IMPACTO.'!H11),E22<=MAX('[4]F-2. MATRIZ PROB E IMPACTO.'!E7:E8,'[4]F-2. MATRIZ PROB E IMPACTO.'!F8:F10,'[4]F-2. MATRIZ PROB E IMPACTO.'!G10,'[4]F-2. MATRIZ PROB E IMPACTO.'!H11)),"Prioridad Moderada",IF(AND(E22>=MIN('[4]F-2. MATRIZ PROB E IMPACTO.'!D7:D11,'[4]F-2. MATRIZ PROB E IMPACTO.'!E9:E11,'[4]F-2. MATRIZ PROB E IMPACTO.'!F11,'[4]F-2. MATRIZ PROB E IMPACTO.'!G11),E22<=MAX('[4]F-2. MATRIZ PROB E IMPACTO.'!D7:D11,'[4]F-2. MATRIZ PROB E IMPACTO.'!E9:E11,'[4]F-2. MATRIZ PROB E IMPACTO.'!F11,'[4]F-2. MATRIZ PROB E IMPACTO.'!G11,)),"Baja Prioridad","")))) -> Alta Prioridad | L22: =+E25 -> Mitigar Riesgo | M22: =+G25 -> 0
L23: =+E26 -> Aceptar Riesgo | M23: =+G26 -> 0
A24: 5 | B24: RESPUESTA A LOS RIESGOS | L24: =+H25 -> Evitar Riesgo | M24: =+I25 -> 0
B25: 5.1 | C25: ESTRATEGIA | E25: Mitigar Riesgo | H25: Evitar Riesgo | L25: =+H26 -> Transferir Riesgo | M25: =+I26 -> X
E26: Aceptar Riesgo | H26: Transferir Riesgo | I26: X
B27: 5.2 | C27: DISPARADOR DE RIESGO | E27: SUPERVISION VERIFICA QUE MUESTRAS ENSAYADAS NO ALCANZAN LA RESISTENCIA ESPECIFICADA. | M27: =IFERROR(INDEX(L22:M26,MATCH(IF(M22>0,M22,IF(M23>0,M23,IF(M24>0,M24,IF(M25>0,M25,IF(M26>0,M26,""))))),M22:M26,0),1),"") -> Transferir Riesgo
B28: 5.3 | C28: ACCIONES PARA DAR RESPUESTA AL RIESGO | E28: * SUPERVISION APRUEBA DISEÑO DE MEZCLA DEL EJECUTOR * SUPERVISION DA PASE A VACIADOS DE CONCRETO VIA CUADERNO DE OBRA. * SUPERVISION EXIGE PRESENCIA DE RESISENTE DE OBRA. * CONTROL DE MANO DE OBRA CALIFICADA * SUPERVISION CONTROLA PERIODO Y ADECUADO ALMACENAMIENTO DE CEMENTO Y AGREGADOS. *EL EJECUTOR A SU COSTO REPARA O DEMUELE ELEMENTOS ESTRUCTURALES OBSERVADOS POR LA SUPERVISION.

Sheet 012
A1: Anexo N° 01 | J1: Regresar
A2: Formato para identificar, analizar y dar respuesta a riesgos
A3: 1 | B3: NÚMERO Y FECHA DEL DOCUMENTO | D3: Número | F3: 12
D4: Fecha | F4: ='001'!F4:I4 -> ABRIL DEL 2022
A5: 2 | B5: DATOS GENERALES DEL PROYECTO | D5: Nombre del Proyecto | F5: ='001'!F5:I5 -> ‘‘MEJORAMIENTO DE LAS VÍAS DE CIRCULACIÓN INTERNA, SEÑALIZACIÓN Y ORNATO EN LA SEDE CENTRAL DE LA UNIVERSIDAD NACIONAL DE EDUCACIÓN ENRIQUE GUZMÁN Y VALLE’’ – SALDO DE OBRA – 1ERA ETAPA
D6: Ubicación Geográfica | F6: ='001'!F6:I6 -> DISTRITO CHOSICA, PROVINCIA LURIGANCHO, DEPARTAMENTO LIMA
A7: 3 | B7: IDENTIFICACIÓN DE RIESGOS
B8: 3.1 | C8: CÓDIGO DE RIESGO | E8: =+'F-3. ASIGNACION RIESGOS '!A20 -> VIAS-UNE-012
B9: 3.2 | C9: DESCRIPCIÓN DEL RIESGO | E9: =+'F-3. ASIGNACION RIESGOS '!B20 -> DELINCUENCIA Y/O VANDALISMO
B10: 3.3 | C10: CAUSA(S) GENERADORA(S) | E10: Causa N° 1 | G10: FALTA DE PRESENCIA POLICIAL EN LA ZONA
E11: Causa N° 2 | G11: FALTA DE CULTURA, EDUCACION Y PROMOCION DE SEGURIDAD Y VALORES EN LA ZONA
E12: Causa N° 3
A13: 4 | B13: ANÁLISIS CUALITATIVO DE RIESGOS
B14: 4.1 | C14: PROBABILIDAD DE OCURRENCIA | F14: 4.2 | G14: IMPACTO EN LA EJECUCIÓN DE LA OBRA
C15: Muy baja | D15: =+'[4]F-2. MATRIZ PROB E IMPACTO.'!C11 -> 0.1 | G15: Muy bajo | H15: =+'[4]F-2. MATRIZ PROB E IMPACTO.'!D12 -> 0.05
C16: Baja | D16: =+'[4]F-2. MATRIZ PROB E IMPACTO.'!C10 -> 0.3 | E16: X | G16: Bajo | H16: =+'[4]F-2. MATRIZ PROB E IMPACTO.'!E12 -> 0.1 | I16: X
C17: Moderada | D17: =+'[4]F-2. MATRIZ PROB E IMPACTO.'!C9 -> 0.5 | G17: Moderado | H17: =+'[4]F-2. MATRIZ PROB E IMPACTO.'!F12 -> 0.2
C18: Alta | D18: =+'[4]F-2. MATRIZ PROB E IMPACTO.'!C8 -> 0.7 | G18: Alto | H18: =+'[4]F-2. MATRIZ PROB E IMPACTO.'!G12 -> 0.4
C19: Muy alta | D19: =+'[4]F-2. MATRIZ PROB E IMPACTO.'!C7 -> 0.9 | G19: Muy alto | H19: =+'[4]F-2. MATRIZ PROB E IMPACTO.'!H12 -> 0.8
C20: =IFERROR(INDEX(C15:E19,MATCH(IF(E15>0,E15,IF(E16>0,E16,IF(E17>0,E17,IF(E18>0,E18,IF(E19>0,E19,""))))),E15:E19,0),1),"") -> Baja | E20: =IFERROR(INDEX(D15:E19,MATCH(IF(E15>0,E15,IF(E16>0,E16,IF(E17>0,E17,IF(E18>0,E18,IF(E19>0,E19,""))))),E15:E19,0),1),"") -> 0.3 | G20: =IFERROR(INDEX(G15:I19,MATCH(IF(I15>0,I15,IF(I16>0,I16,IF(I17>0,I17,IF(I18>0,I18,IF(I19>0,I19,""))))),I15:I19,0),1),"") -> Bajo | I20: =IFERROR(INDEX(H15:I19,MATCH(IF(I15>0,I15,IF(I16>0,I16,IF(I17>0,I17,IF(I18>0,I18,IF(I19>0,I19,""))))),I15:I19,0),1),"") -> 0.1
B21: 4.3 | C21: PRIORIZACIÓN DEL RIESGO
C22: Puntuación del Riesgo =Probabilidad x Impacto | E22: =+IFERROR(ROUND(E20*I20,3),0) -> 0.03 | F22: Prioridad del Riesgo | H22: =+IF(E22=0,"",IF(AND(E22>=MIN('[4]F-2. MATRIZ PROB E IMPACTO.'!F7:H7,'[4]F-2. MATRIZ PROB E IMPACTO.'!G8:H8,'[4]F-2. MATRIZ PROB E IMPACTO.'!G9:H9,'[4]F-2. MATRIZ PROB E IMPACTO.'!H10),E22<=MAX('[4]F-2. MATRIZ PROB E IMPACTO.'!F7:H7,'[4]F-2. MATRIZ PROB E IMPACTO.'!G8:H8,'[4]F-2. MATRIZ PROB E IMPACTO.'!G9:H9,'[4]F-2. MATRIZ PROB E IMPACTO.'!H10)),"Alta Prioridad",IF(AND(E22>=MIN('[4]F-2. MATRIZ PROB E IMPACTO.'!E7:E8,'[4]F-2. MATRIZ PROB E IMPACTO.'!F8:F10,'[4]F-2. MATRIZ PROB E IMPACTO.'!G10,'[4]F-2. MATRIZ PROB E IMPACTO.'!H11),E22<=MAX('[4]F-2. MATRIZ PROB E IMPACTO.'!E7:E8,'[4]F-2. MATRIZ PROB E IMPACTO.'!F8:F10,'[4]F-2. MATRIZ PROB E IMPACTO.'!G10,'[4]F-2. MATRIZ PROB E IMPACTO.'!H11)),"Prioridad Moderada",IF(AND(E22>=MIN('[4]F-2. MATRIZ PROB E IMPACTO.'!D7:D11,'[4]F-2. MATRIZ PROB E IMPACTO.'!E9:E11,'[4]F-2. MATRIZ PROB E IMPACTO.'!F11,'[4]F-2. MATRIZ PROB E IMPACTO.'!G11),E22<=MAX('[4]F-2. MATRIZ PROB E IMPACTO.'!D7:D11,'[4]F-2. MATRIZ PROB E IMPACTO.'!E9:E11,'[4]F-2. MATRIZ PROB E IMPACTO.'!F11,'[4]F-2. MATRIZ PROB E IMPACTO.'!G11,)),"Baja Prioridad","")))) -> Baja Prioridad | L22: =+E25 -> Mitigar Riesgo | M22: =+G25 -> 0
L23: =+E26 -> Aceptar Riesgo | M23: =+G26 -> 0
A24: 5 | B24: RESPUESTA A LOS RIESGOS | L24: =+H25 -> Evitar Riesgo | M24: =+I25 -> 0
B25: 5.1 | C25: ESTRATEGIA | E25: Mitigar Riesgo | H25: Evitar Riesgo | L25: =+H26 -> Transferir Riesgo | M25: =+I26 -> X
E26: Aceptar Riesgo | H26: Transferir Riesgo | I26: X
B27: 5.2 | C27: DISPARADOR DE RIESGO | E27: INCREMENTO DE INDICE DE DELINCUENCIA EN LA ZONA | M27: =IFERROR(INDEX(L22:M26,MATCH(IF(M22>0,M22,IF(M23>0,M23,IF(M24>0,M24,IF(M25>0,M25,IF(M26>0,M26,""))))),M22:M26,0),1),"") -> Transferir Riesgo
B28: 5.3 | C28: ACCIONES PARA DAR RESPUESTA AL RIESGO | E28: * EJECUTOR CONTRATAR SERVICIOS DE SEGURIDAD Y VIGILANCIA INTERNA Y EXTERNA DE LA OBRA. * EJECUTOR COORDINA CONSTANTEMENTE CON LA POLICIA NACIONAL PARA INCREMENTAR VIGILANCIA.

Sheet 013
A1: Anexo N° 01 | J1: Regresar
A2: Formato para identificar, analizar y dar respuesta a riesgos
A3: 1 | B3: NÚMERO Y FECHA DEL DOCUMENTO | D3: Número | F3: 13
D4: Fecha | F4: ='001'!F4:I4 -> ABRIL DEL 2022
A5: 2 | B5: DATOS GENERALES DEL PROYECTO | D5: Nombre del Proyecto | F5: ='001'!F5:I5 -> ‘‘MEJORAMIENTO DE LAS VÍAS DE CIRCULACIÓN INTERNA, SEÑALIZACIÓN Y ORNATO EN LA SEDE CENTRAL DE LA UNIVERSIDAD NACIONAL DE EDUCACIÓN ENRIQUE GUZMÁN Y VALLE’’ – SALDO DE OBRA – 1ERA ETAPA
D6: Ubicación Geográfica | F6: ='001'!F6:I6 -> DISTRITO CHOSICA, PROVINCIA LURIGANCHO, DEPARTAMENTO LIMA
A7: 3 | B7: IDENTIFICACIÓN DE RIESGOS
B8: 3.1 | C8: CÓDIGO DE RIESGO | E8: =+'F-3. ASIGNACION RIESGOS '!A21 -> VIAS-UNE-013
B9: 3.2 | C9: DESCRIPCIÓN DEL RIESGO | E9: =+'F-3. ASIGNACION RIESGOS '!B21 -> USO DE DEPOSITOS DE MATERIAL EXCEDENTES (DME) NO AUTORIZADOS O PROPIEDAD DE TERCEROS
B10: 3.3 | C10: CAUSA(S) GENERADORA(S) | E10: Causa N° 1 | G10: NO SE RESPETA LIMITES DE DME PROYECTADO.
E11: Causa N° 2 | G11: DIMENSIONES DE DME PROYECTADO ES INSUFICIENTE
E12: Causa N° 3
A13: 4 | B13: ANÁLISIS CUALITATIVO DE RIESGOS
B14: 4.1 | C14: PROBABILIDAD DE OCURRENCIA | F14: 4.2 | G14: IMPACTO EN LA EJECUCIÓN DE LA OBRA
C15: Muy baja | D15: =+'[4]F-2. MATRIZ PROB E IMPACTO.'!C11 -> 0.1 | G15: Muy bajo | H15: =+'[4]F-2. MATRIZ PROB E IMPACTO.'!D12 -> 0.05
C16: Baja | D16: =+'[4]F-2. MATRIZ PROB E IMPACTO.'!C10 -> 0.3 | G16: Bajo | H16: =+'[4]F-2. MATRIZ PROB E IMPACTO.'!E12 -> 0.1
C17: Moderada | D17: =+'[4]F-2. MATRIZ PROB E IMPACTO.'!C9 -> 0.5 | E17: X | G17: Moderado | H17: =+'[4]F-2. MATRIZ PROB E IMPACTO.'!F12 -> 0.2 | I17: X
C18: Alta | D18: =+'[4]F-2. MATRIZ PROB E IMPACTO.'!C8 -> 0.7 | G18: Alto | H18: =+'[4]F-2. MATRIZ PROB E IMPACTO.'!G12 -> 0.4
C19: Muy alta | D19: =+'[4]F-2. MATRIZ PROB E IMPACTO.'!C7 -> 0.9 | G19: Muy alto | H19: =+'[4]F-2. MATRIZ PROB E IMPACTO.'!H12 -> 0.8
C20: =IFERROR(INDEX(C15:E19,MATCH(IF(E15>0,E15,IF(E16>0,E16,IF(E17>0,E17,IF(E18>0,E18,IF(E19>0,E19,""))))),E15:E19,0),1),"") -> Moderada | E20: =IFERROR(INDEX(D15:E19,MATCH(IF(E15>0,E15,IF(E16>0,E16,IF(E17>0,E17,IF(E18>0,E18,IF(E19>0,E19,""))))),E15:E19,0),1),"") -> 0.5 | G20: =IFERROR(INDEX(G15:I19,MATCH(IF(I15>0,I15,IF(I16>0,I16,IF(I17>0,I17,IF(I18>0,I18,IF(I19>0,I19,""))))),I15:I19,0),1),"") -> Moderado | I20: =IFERROR(INDEX(H15:I19,MATCH(IF(I15>0,I15,IF(I16>0,I16,IF(I17>0,I17,IF(I18>0,I18,IF(I19>0,I19,""))))),I15:I19,0),1),"") -> 0.2
B21: 4.3 | C21: PRIORIZACIÓN DEL RIESGO
C22: Puntuación del Riesgo =Probabilidad x Impacto | E22: =+IFERROR(ROUND(E20*I20,3),0) -> 0.1 | F22: Prioridad del Riesgo | H22: =+IF(E22=0,"",IF(AND(E22>=MIN('[4]F-2. MATRIZ PROB E IMPACTO.'!F7:H7,'[4]F-2. MATRIZ PROB E IMPACTO.'!G8:H8,'[4]F-2. MATRIZ PROB E IMPACTO.'!G9:H9,'[4]F-2. MATRIZ PROB E IMPACTO.'!H10),E22<=MAX('[4]F-2. MATRIZ PROB E IMPACTO.'!F7:H7,'[4]F-2. MATRIZ PROB E IMPACTO.'!G8:H8,'[4]F-2. MATRIZ PROB E IMPACTO.'!G9:H9,'[4]F-2. MATRIZ PROB E IMPACTO.'!H10)),"Alta Prioridad",IF(AND(E22>=MIN('[4]F-2. MATRIZ PROB E IMPACTO.'!E7:E8,'[4]F-2. MATRIZ PROB E IMPACTO.'!F8:F10,'[4]F-2. MATRIZ PROB E IMPACTO.'!G10,'[4]F-2. MATRIZ PROB E IMPACTO.'!H11),E22<=MAX('[4]F-2. MATRIZ PROB E IMPACTO.'!E7:E8,'[4]F-2. MATRIZ PROB E IMPACTO.'!F8:F10,'[4]F-2. MATRIZ PROB E IMPACTO.'!G10,'[4]F-2. MATRIZ PROB E IMPACTO.'!H11)),"Prioridad Moderada",IF(AND(E22>=MIN('[4]F-2. MATRIZ PROB E IMPACTO.'!D7:D11,'[4]F-2. MATRIZ PROB E IMPACTO.'!E9:E11,'[4]F-2. MATRIZ PROB E IMPACTO.'!F11,'[4]F-2. MATRIZ PROB E IMPACTO.'!G11),E22<=MAX('[4]F-2. MATRIZ PROB E IMPACTO.'!D7:D11,'[4]F-2. MATRIZ PROB E IMPACTO.'!E9:E11,'[4]F-2. MATRIZ PROB E IMPACTO.'!F11,'[4]F-2. MATRIZ PROB E IMPACTO.'!G11,)),"Baja Prioridad","")))) -> Prioridad Moderada | L22: =+E25 -> Mitigar Riesgo | M22: =+G25 -> X
L23: =+E26 -> Aceptar Riesgo | M23: =+G26 -> 0
A24: 5 | B24: RESPUESTA A LOS RIESGOS | L24: =+H25 -> Evitar Riesgo | M24: =+I25 -> 0
B25: 5.1 | C25: ESTRATEGIA | E25: Mitigar Riesgo | G25: X | H25: Evitar Riesgo | L25: =+H26 -> Transferir Riesgo | M25: =+I26 -> 0
E26: Aceptar Riesgo | H26: Transferir Riesgo
B27: 5.2 | C27: DISPARADOR DE RIESGO | E27: DME PROXIMOS A SU CAPACIDAD MAXIMA O A LIMITES PERIMETRICOS. | M27: =IFERROR(INDEX(L22:M26,MATCH(IF(M22>0,M22,IF(M23>0,M23,IF(M24>0,M24,IF(M25>0,M25,IF(M26>0,M26,""))))),M22:M26,0),1),"") -> Mitigar Riesgo
B28: 5.3 | C28: ACCIONES PARA DAR RESPUESTA AL RIESGO | E28: *USO DE DME ALTERNATIVOS PROYECTADOS *SUPERVISION PROPONE DME ALTERNATIVOS CERCANOS AL PROYECTO

Sheet 014
A1: Anexo N° 01 | J1: Regresar
A2: Formato para identificar, analizar y dar respuesta a riesgos
A3: 1 | B3: NÚMERO Y FECHA DEL DOCUMENTO | D3: Número | F3: 14
D4: Fecha | F4: ='001'!F4:I4 -> ABRIL DEL 2022
A5: 2 | B5: DATOS GENERALES DEL PROYECTO | D5: Nombre del Proyecto | F5: ='001'!F5:I5 -> ‘‘MEJORAMIENTO DE LAS VÍAS DE CIRCULACIÓN INTERNA, SEÑALIZACIÓN Y ORNATO EN LA SEDE CENTRAL DE LA UNIVERSIDAD NACIONAL DE EDUCACIÓN ENRIQUE GUZMÁN Y VALLE’’ – SALDO DE OBRA – 1ERA ETAPA
D6: Ubicación Geográfica | F6: ='001'!F6:I6 -> DISTRITO CHOSICA, PROVINCIA LURIGANCHO, DEPARTAMENTO LIMA
A7: 3 | B7: IDENTIFICACIÓN DE RIESGOS
B8: 3.1 | C8: CÓDIGO DE RIESGO | E8: =+'F-3. ASIGNACION RIESGOS '!A22 -> VIAS-UNE-014
B9: 3.2 | C9: DESCRIPCIÓN DEL RIESGO | E9: =+'F-3. ASIGNACION RIESGOS '!B22 -> CAMBIOS EN LA NORMATIVA QUE RESULTE DE APLICACIÓN EN LA EJECUCION DE LA OBRA
B10: 3.3 | C10: CAUSA(S) GENERADORA(S) | E10: Causa N° 1 | G10: AMBIGÜEDAD U OBSOLECENCIA DE NORMATIVA VIGENTE
E11: Causa N° 2 | G11: AFILIACION A ORGA NISMOS INTERNACIONALES QUE EXIJAN ESTANDARES A NIVEL GLOBAL
E12: Causa N° 3
A13: 4 | B13: ANÁLISIS CUALITATIVO DE RIESGOS
B14: 4.1 | C14: PROBABILIDAD DE OCURRENCIA | F14: 4.2 | G14: IMPACTO EN LA EJECUCIÓN DE LA OBRA
C15: Muy baja | D15: =+'[4]F-2. MATRIZ PROB E IMPACTO.'!C11 -> 0.1 | E15: X | G15: Muy bajo | H15: =+'[4]F-2. MATRIZ PROB E IMPACTO.'!D12 -> 0.05
C16: Baja | D16: =+'[4]F-2. MATRIZ PROB E IMPACTO.'!C10 -> 0.3 | G16: Bajo | H16: =+'[4]F-2. MATRIZ PROB E IMPACTO.'!E12 -> 0.1
C17: Moderada | D17: =+'[4]F-2. MATRIZ PROB E IMPACTO.'!C9 -> 0.5 | G17: Moderado | H17: =+'[4]F-2. MATRIZ PROB E IMPACTO.'!F12 -> 0.2
C18: Alta | D18: =+'[4]F-2. MATRIZ PROB E IMPACTO.'!C8 -> 0.7 | G18: Alto | H18: =+'[4]F-2. MATRIZ PROB E IMPACTO.'!G12 -> 0.4 | I18: X
C19: Muy alta | D19: =+'[4]F-2. MATRIZ PROB E IMPACTO.'!C7 -> 0.9 | G19: Muy alto | H19: =+'[4]F-2. MATRIZ PROB E IMPACTO.'!H12 -> 0.8
C20: =IFERROR(INDEX(C15:E19,MATCH(IF(E15>0,E15,IF(E16>0,E16,IF(E17>0,E17,IF(E18>0,E18,IF(E19>0,E19,""))))),E15:E19,0),1),"") -> Muy baja | E20: =IFERROR(INDEX(D15:E19,MATCH(IF(E15>0,E15,IF(E16>0,E16,IF(E17>0,E17,IF(E18>0,E18,IF(E19>0,E19,""))))),E15:E19,0),1),"") -> 0.1 | G20: =IFERROR(INDEX(G15:I19,MATCH(IF(I15>0,I15,IF(I16>0,I16,IF(I17>0,I17,IF(I18>0,I18,IF(I19>0,I19,""))))),I15:I19,0),1),"") -> Alto | I20: =IFERROR(INDEX(H15:I19,MATCH(IF(I15>0,I15,IF(I16>0,I16,IF(I17>0,I17,IF(I18>0,I18,IF(I19>0,I19,""))))),I15:I19,0),1),"") -> 0.4
B21: 4.3 | C21: PRIORIZACIÓN DEL RIESGO
C22: Puntuación del Riesgo =Probabilidad x Impacto | E22: =+IFERROR(ROUND(E20*I20,3),0) -> 0.04 | F22: Prioridad del Riesgo | H22: =+IF(E22=0,"",IF(AND(E22>=MIN('[4]F-2. MATRIZ PROB E IMPACTO.'!F7:H7,'[4]F-2. MATRIZ PROB E IMPACTO.'!G8:H8,'[4]F-2. MATRIZ PROB E IMPACTO.'!G9:H9,'[4]F-2. MATRIZ PROB E IMPACTO.'!H10),E22<=MAX('[4]F-2. MATRIZ PROB E IMPACTO.'!F7:H7,'[4]F-2. MATRIZ PROB E IMPACTO.'!G8:H8,'[4]F-2. MATRIZ PROB E IMPACTO.'!G9:H9,'[4]F-2. MATRIZ PROB E IMPACTO.'!H10)),"Alta Prioridad",IF(AND(E22>=MIN('[4]F-2. MATRIZ PROB E IMPACTO.'!E7:E8,'[4]F-2. MATRIZ PROB E IMPACTO.'!F8:F10,'[4]F-2. MATRIZ PROB E IMPACTO.'!G10,'[4]F-2. MATRIZ PROB E IMPACTO.'!H11),E22<=MAX('[4]F-2. MATRIZ PROB E IMPACTO.'!E7:E8,'[4]F-2. MATRIZ PROB E IMPACTO.'!F8:F10,'[4]F-2. MATRIZ PROB E IMPACTO.'!G10,'[4]F-2. MATRIZ PROB E IMPACTO.'!H11)),"Prioridad Moderada",IF(AND(E22>=MIN('[4]F-2. MATRIZ PROB E IMPACTO.'!D7:D11,'[4]F-2. MATRIZ PROB E IMPACTO.'!E9:E11,'[4]F-2. MATRIZ PROB E IMPACTO.'!F11,'[4]F-2. MATRIZ PROB E IMPACTO.'!G11),E22<=MAX('[4]F-2. MATRIZ PROB E IMPACTO.'!D7:D11,'[4]F-2. MATRIZ PROB E IMPACTO.'!E9:E11,'[4]F-2. MATRIZ PROB E IMPACTO.'!F11,'[4]F-2. MATRIZ PROB E IMPACTO.'!G11,)),"Baja Prioridad","")))) -> Baja Prioridad | L22: =+E25 -> Mitigar Riesgo | M22: =+G25 -> 0
L23: =+E26 -> Aceptar Riesgo | M23: =+G26 -> X
A24: 5 | B24: RESPUESTA A LOS RIESGOS | L24: =+H25 -> Evitar Riesgo | M24: =+I25 -> 0
B25: 5.1 | C25: ESTRATEGIA | E25: Mitigar Riesgo | H25: Evitar Riesgo | L25: =+H26 -> Transferir Riesgo | M25: =+I26 -> 0
E26: Aceptar Riesgo | G26: X | H26: Transferir Riesgo
B27: 5.2 | C27: DISPARADOR DE RIESGO | E27: PUBLICACION OFICIAL Y PUESTA EN VIGENCIA DE NUEVA NORMATIVA. | M27: =IFERROR(INDEX(L22:M26,MATCH(IF(M22>0,M22,IF(M23>0,M23,IF(M24>0,M24,IF(M25>0,M25,IF(M26>0,M26,""))))),M22:M26,0),1),"") -> Aceptar Riesgo
B28: 5.3 | C28: ACCIONES PARA DAR RESPUESTA AL RIESGO | E28: * IMPLEMENTAR LAS MODIFICACIONES DE LA NORMATIVA QUE SEA APLICABLE A LA EJECUCION DE LA OBRA. * ANALIZAR LOS CAMBIOS PRESENTADOS EN LA NORMATIVA APLICABLE A FIN DE TRASLADAR LAS RESPONSABILIDADES U OBLIGACIONES AL CONTRATISTA, ASI COMO TAMBIEN, DE PRESENTARSE VARIACIONES EN LOS COSTOS, IMPLEMENTAR MEDIDAS COMPENSATORIAS EN EL MARCO DE LA LEY DE CONTRTACIONES DEL ESTADO.

Sheet 015
A1: Anexo N° 01 | J1: Regresar
A2: Formato para identificar, analizar y dar respuesta a riesgos
A3: 1 | B3: NÚMERO Y FECHA DEL DOCUMENTO | D3: Número | F3: 15
D4: Fecha | F4: ='001'!F4:I4 -> ABRIL DEL 2022
A5: 2 | B5: DATOS GENERALES DEL PROYECTO | D5: Nombre del Proyecto | F5: ='001'!F5:I5 -> ‘‘MEJORAMIENTO DE LAS VÍAS DE CIRCULACIÓN INTERNA, SEÑALIZACIÓN Y ORNATO EN LA SEDE CENTRAL DE LA UNIVERSIDAD NACIONAL DE EDUCACIÓN ENRIQUE GUZMÁN Y VALLE’’ – SALDO DE OBRA – 1ERA ETAPA
D6: Ubicación Geográfica | F6: ='001'!F6:I6 -> DISTRITO CHOSICA, PROVINCIA LURIGANCHO, DEPARTAMENTO LIMA
A7: 3 | B7: IDENTIFICACIÓN DE RIESGOS
B8: 3.1 | C8: CÓDIGO DE RIESGO | E8: =+'F-3. ASIGNACION RIESGOS '!A23 -> VIAS-UNE-015
B9: 3.2 | C9: DESCRIPCIÓN DEL RIESGO | E9: =+'F-3. ASIGNACION RIESGOS '!B23 -> DEBIDO A LAS OCURRENCIAS DE DESASTRES NATURALES PODRIA OCURRIR DAÑOS IRREPARABLES EN LA OBRA A EJECUTAR, LO QUE CONLLEVARIA A AFECTAR EL COSTO DEL PROYECTO Y PERDIDAS DE MATERIALES DE CONSTRUCCION Y BIENES
B10: 3.3 | C10: CAUSA(S) GENERADORA(S) | E10: Causa N° 1 | G10: LLUVIAS
E11: Causa N° 2 | G11: INUNDACIONES
E12: Causa N° 3 | G12: DESLIZAMIENTOS
A13: 4 | B13: ANÁLISIS CUALITATIVO DE RIESGOS
B14: 4.1 | C14: PROBABILIDAD DE OCURRENCIA | F14: 4.2 | G14: IMPACTO EN LA EJECUCIÓN DE LA OBRA
C15: Muy baja | D15: =+'[4]F-2. MATRIZ PROB E IMPACTO.'!C11 -> 0.1 | G15: Muy bajo | H15: =+'[4]F-2. MATRIZ PROB E IMPACTO.'!D12 -> 0.05
C16: Baja | D16: =+'[4]F-2. MATRIZ PROB E IMPACTO.'!C10 -> 0.3 | E16: X | G16: Bajo | H16: =+'[4]F-2. MATRIZ PROB E IMPACTO.'!E12 -> 0.1
C17: Moderada | D17: =+'[4]F-2. MATRIZ PROB E IMPACTO.'!C9 -> 0.5 | G17: Moderado | H17: =+'[4]F-2. MATRIZ PROB E IMPACTO.'!F12 -> 0.2
C18: Alta | D18: =+'[4]F-2. MATRIZ PROB E IMPACTO.'!C8 -> 0.7 | G18: Alto | H18: =+'[4]F-2. MATRIZ PROB E IMPACTO.'!G12 -> 0.4
C19: Muy alta | D19: =+'[4]F-2. MATRIZ PROB E IMPACTO.'!C7 -> 0.9 | G19: Muy alto | H19: =+'[4]F-2. MATRIZ PROB E IMPACTO.'!H12 -> 0.8 | I19: X
C20: =IFERROR(INDEX(C15:E19,MATCH(IF(E15>0,E15,IF(E16>0,E16,IF(E17>0,E17,IF(E18>0,E18,IF(E19>0,E19,""))))),E15:E19,0),1),"") -> Baja | E20: =IFERROR(INDEX(D15:E19,MATCH(IF(E15>0,E15,IF(E16>0,E16,IF(E17>0,E17,IF(E18>0,E18,IF(E19>0,E19,""))))),E15:E19,0),1),"") -> 0.3 | G20: =IFERROR(INDEX(G15:I19,MATCH(IF(I15>0,I15,IF(I16>0,I16,IF(I17>0,I17,IF(I18>0,I18,IF(I19>0,I19,""))))),I15:I19,0),1),"") -> Muy alto | I20: =IFERROR(INDEX(H15:I19,MATCH(IF(I15>0,I15,IF(I16>0,I16,IF(I17>0,I17,IF(I18>0,I18,IF(I19>0,I19,""))))),I15:I19,0),1),"") -> 0.8
B21: 4.3 | C21: PRIORIZACIÓN DEL RIESGO
C22: Puntuación del Riesgo =Probabilidad x Impacto | E22: =+IFERROR(ROUND(E20*I20,3),0) -> 0.24 | F22: Prioridad del Riesgo | H22: =+IF(E22=0,"",IF(AND(E22>=MIN('[4]F-2. MATRIZ PROB E IMPACTO.'!F7:H7,'[4]F-2. MATRIZ PROB E IMPACTO.'!G8:H8,'[4]F-2. MATRIZ PROB E IMPACTO.'!G9:H9,'[4]F-2. MATRIZ PROB E IMPACTO.'!H10),E22<=MAX('[4]F-2. MATRIZ PROB E IMPACTO.'!F7:H7,'[4]F-2. MATRIZ PROB E IMPACTO.'!G8:H8,'[4]F-2. MATRIZ PROB E IMPACTO.'!G9:H9,'[4]F-2. MATRIZ PROB E IMPACTO.'!H10)),"Alta Prioridad",IF(AND(E22>=MIN('[4]F-2. MATRIZ PROB E IMPACTO.'!E7:E8,'[4]F-2. MATRIZ PROB E IMPACTO.'!F8:F10,'[4]F-2. MATRIZ PROB E IMPACTO.'!G10,'[4]F-2. MATRIZ PROB E IMPACTO.'!H11),E22<=MAX('[4]F-2. MATRIZ PROB E IMPACTO.'!E7:E8,'[4]F-2. MATRIZ PROB E IMPACTO.'!F8:F10,'[4]F-2. MATRIZ PROB E IMPACTO.'!G10,'[4]F-2. MATRIZ PROB E IMPACTO.'!H11)),"Prioridad Moderada",IF(AND(E22>=MIN('[4]F-2. MATRIZ PROB E IMPACTO.'!D7:D11,'[4]F-2. MATRIZ PROB E IMPACTO.'!E9:E11,'[4]F-2. MATRIZ PROB E IMPACTO.'!F11,'[4]F-2. MATRIZ PROB E IMPACTO.'!G11),E22<=MAX('[4]F-2. MATRIZ PROB E IMPACTO.'!D7:D11,'[4]F-2. MATRIZ PROB E IMPACTO.'!E9:E11,'[4]F-2. MATRIZ PROB E IMPACTO.'!F11,'[4]F-2. MATRIZ PROB E IMPACTO.'!G11,)),"Baja Prioridad","")))) -> Alta Prioridad | L22: =+E25 -> Mitigar Riesgo | M22: =+G25 -> 0
L23: =+E26 -> Aceptar Riesgo | M23: =+G26 -> X
A24: 5 | B24: RESPUESTA A LOS RIESGOS | L24: =+H25 -> Evitar Riesgo | M24: =+I25 -> 0
B25: 5.1 | C25: ESTRATEGIA | E25: Mitigar Riesgo | H25: Evitar Riesgo | L25: =+H26 -> Transferir Riesgo | M25: =+I26 -> 0
E26: Aceptar Riesgo | G26: X | H26: Transferir Riesgo
B27: 5.2 | C27: DISPARADOR DE RIESGO | E27: OCURRE EL FENOMENO NATURAL AFECTANDO LAS OBRAS | M27: =IFERROR(INDEX(L22:M26,MATCH(IF(M22>0,M22,IF(M23>0,M23,IF(M24>0,M24,IF(M25>0,M25,IF(M26>0,M26,""))))),M22:M26,0),1),"") -> Aceptar Riesgo
B28: 5.3 | C28: ACCIONES PARA DAR RESPUESTA AL RIESGO | E28: * REALIZAR LA INSPECCION CON ANTICIPACION Y REALIZAR LA VERIFICACION DE LAS ZONAS VULNERABLES QUE PODRIAN CAUSAR LOS DESASTRES NATURALES Y TOMAR PREVENSION A LOS CAUSALES. * EL EJECUTOR DEBE CONSIDERAR EN SU OFERTA ECONOMICA LOS COSTOS PARA ASEGURAR LA OBRA CONTRA DESASTRES NATURALES. * EJECUTOR REPONE DAÑOS SIN QUE LA ENTIDAD REALICE PAGOS ADICIONALES

Sheet F-2. MATRIZ PROB E IMPACTO.
A1: Anexo N° 02 | I1: Regresar
A2: Matriz de probabilidad e impacto según Guía PMBOK
A7: 1. PROBABILIDAD DE OCURRENCIA | B7: Muy Alta | C7: 0.9 | D7: =+C7*D12 -> 0.045 | E7: =+C7*E12 -> 0.09 | F7: =+C7*F12 -> 0.18 | G7: =+C7*G12 -> 0.36 | H7: =+C7*H12 -> 0.72
B8: Alta | C8: 0.7 | D8: =+C8*D12 -> 0.035 | E8: =+C8*E12 -> 0.07 | F8: =+C8*F12 -> 0.14 | G8: =+C8*G12 -> 0.28 | H8: =+C8*H12 -> 0.56
B9: Moderada | C9: 0.5 | D9: =+C9*D12 -> 0.025 | E9: =+C9*E12 -> 0.05 | F9: =+C9*F12 -> 0.1 | G9: =+C9*G12 -> 0.2 | H9: =+C9*H12 -> 0.4
B10: Baja | C10: 0.3 | D10: =+C10*D12 -> 0.015 | E10: =+C10*E12 -> 0.03 | F10: =+C10*F12 -> 0.06 | G10: =+C10*G12 -> 0.12 | H10: =+C10*H12 -> 0.24
B11: Muy Baja | C11: 0.1 | D11: =+C11*D12 -> 0.005 | E11: =+C11*E12 -> 0.01 | F11: =+C11*F12 -> 0.02 | G11: =+C11*G12 -> 0.04 | H11: =+C11*H12 -> 0.08
A12: 2. IMPACTO EN LA EJECUCIÓN DE LA OBRA | D12: 0.05 | E12: 0.1 | F12: 0.2 | G12: 0.4 | H12: 0.8
D13: Muy Bajo | E13: Bajo | F13: Moderado | G13: Alto | H13: Muy Alto
A14: 3. PRIORIDAD DEL RIESGO | F14: Baja | G14: Moderada | H14: Alta

Sheet F-3. ASIGNACION RIESGOS
A1: Anexo N° 03 | N1: Regresar
A2: Formato para asignar los riesgos
A3: 1. NÚMERO Y FECHA DEL DOCUMENTO | C3: Número | E3: 1 | G3: 2. DATOS GENERALES DEL PROYECTO | I3: Nombre del Proyecto | J3: ‘‘MEJORAMIENTO DE LAS VÍAS DE CIRCULACIÓN INTERNA, SEÑALIZACIÓN Y ORNATO EN LA SEDE CENTRAL DE LA UNIVERSIDAD NACIONAL DE EDUCACIÓN ENRIQUE GUZMÁN Y VALLE’’ – SALDO DE OBRA – 1ERA ETAPA
C4: Fecha | E4: ABRIL DEL 2022 | I4: Ubicación Geográfica | J4: DISTRITO CHOSICA, PROVINCIA LURIGANCHO, DEPARTAMENTO LIMA
A6: 3.INFORMACIÓN DEL RIESGO | E6: 4 PLAN DE RESPUESTA A LOS RIESGOS
E7: 4.1 ESTRATEGIA SELECCIONADA | I7: 4.2 ACCIONES A REALIZAR EN EL MARCO DEL PLAN | L7: 4.3 RIESGO ASIGNADO A
A8: 3.1 CÓDIGO DE RIESGO | B8: 3.2 DESCRIPCIÓN DEL RIESGO | C8: 3.3 PRIORIDAD DEL RIESGO | D8: ESTRATEGIA SELECIONADA | E8: Mitigar Riesgo | F8: Evitar Riesgo | G8: Aceptar Riesgo | H8: Transferir Riesgo | L8: Entidad | M8: Contratista
A9: VIAS-UNE-001 | B9: ERRORES, OMISIONES O DEFICIENCIAS EN LOS DISEÑOS | C9: Alta Prioridad | D9: Aceptar Riesgo | E9: =IF(D9=$E$8,"X"," ") ->  | F9: =IF(D9=$F$8,"X"," ") ->  | G9: =IF(D9=$G$8,"X"," ") -> X | H9: =IF(D9=$H$8,"X"," ") ->  | I9: * SUPERVISION INFORMA OCORRUNCIA Y ENTIDAD EVALUA A FIN DE TRASLADAR LAS RESPONSABILIDADES U OBLIGACIONES, ASI COMO TAMBIEN, DE PRESENTARSE VARIACIONES EN LOS COSTOS, IMPLEMENTAR MEDIDAS COMPENSATORIAS EN EL MARCO DE LA LEY DE CONTRATACIONES DEL ESTADO. * EL AREA DE ESTUDIOS Y PROYECTOS, A TRAVES DE COORDINADOR DEL PROYECTO Y ESPECIALISTA RECALCULA, REDISEÑA Y/O ABSUELVE CONSULTA DENTRO DE PLAZO DE LEY. | L9: =IF(H9=" ","X"," ") -> X | M9: =IF(H9="X","X"," ") -> 
A10: VIAS-UNE-002 | B10: EQUIPOS Y/O MAQUINARIA NO CUMPLE CON ESPECIFICACIONES TECNICAS O NO ES APROPIADA PARA EJECUCION DE PARTIDAS SEGÚN CALIFICACION DE LA SUPERVISION | C10: Prioridad Moderada | D10: Transferir Riesgo | E10: =IF(D10=$E$8,"X"," ") ->  | H10: X | I10: *SUPERVISION OPORTUNAMENTE EVALUA Y APRUEBA LA MAQUINARIA EN SU PUNTO DE PARTIDA, AUTORIZANDO SU TRASLADO E INGRESO A LA OBRA. * CONTRATISTA CERTIFICA OPERATIVIDAD DE MAQUINARIA Y EQUIPOS EN SU PUNTO DE PARTIDA. * EJECUTOR ES RESPONSABLE DE CONTAR MINIMAMENTE CON UN (01) EQUIPO O MAQUINARIA ADICIONAL DE CARACTERISTICAS SIMILARES CARACTERISTICAS O REPONER EN UN PLAZO DETERMINADO POR LA SUPERVISION. * SUPERVISION ESTA AUTORIZADO PARA RECHAZAR MAQUINARIA Y EQUIPOS QUE NO CUMPLEN CON ESPECIFICACIONES TECNICAS O CONSIDERA INAPROPIADA PARA EJECUTAR LA OBRA. | M10: X
A11: VIAS-UNE-003 | B11: DEFICIENCIAS ESTRUCTURALES EN LA CONSTRUCCION DE LAS VIAS PEATONALES Y CICLOVIAS | C11: Alta Prioridad | D11: Transferir Riesgo | H11: X | I11: * LA SUPERVISION EXIGE PERMANENCIA DE RESIDENTE DE OBRA Y ESPECIALISTA EN SUELOS Y CONTROL DE CALIDAD DEL EJECUTOR. * LA SUPERVISION CALIFICA Y AUTORIZA EMPLEO DE MANO DE OBRA. * LA SUPERVISION SIEMPRE AUTORIZA EJECUCION DE PARTIDAS SUCESORAS MEDIANTE ANOTACION EN CUADERNO DE OBRA. * EJECUTOR A SU COSTO EFECTUA LAS CORRECIONES A SATISFACCION DE LA SUPERVISION, PROYECTISTA U OTRO PROFESIONAL DE LA ESPECIALIDAD POR PARTE DE LA ENTIDAD. | M11: X
A12: VIAS-UNE-004 | B12: DAÑOS A INFRAESTRUCTURA EXISTENTE DE LA ENTIDAD O PROPIEDAD DE TERCEROS. | C12: Prioridad Moderada | D12: Transferir Riesgo | H12: X | I12: *EJECUTOR DEBERA DE CUMPLIR CON MEDIDAS DE PROTECCION Y SEGURIDAD PARA TRASLADO DE PERSONAL, MATERIALES, MAQUINARIA Y/O EQUIPOS, ASI MISMO UNA BUENA SEÑALIZACION VIAL EN CASO SE INTERRUMPA LOS ACCESOS VEHICULARES. *EL EJECUTOR A SU COSTO ESTA OBLIGADO A REPARAR, REPONER, RECONSTRUIR, DEJANDO EN SIMILAR O MEJOR CONDICION LO DAÑADO. * EL EJECUTOR ES RESPONSABLE DE ADQUIRIR Y MANTENER VIGENTE LOS SEGUROS CONTRA RIESGO DE INGENIERIA, DAÑOS A TERCEROS, ETC. * EJECUTOR ESTA OBLIGADO A TENER UN INGENIERO ESPECIALISTA EN SEGURIDAD Y SALUD OCUPACIONAL EN TODAS LAS ACTIVIDADES QUE CONSTITUYAN RIESGO A PROPIDAD DE TERCEROS Y DE LA ENTIDAD * SUPERVISION EVALUA Y AUTORIZA PARTICIPACION DE OPERADORES CALIFICADAS EN LA OBRA. | M12: X
A13: VIAS-UNE-005 | B13: DEFICIENCIA EN TRABAJOS DE PLAN DE CONTINGENCIA Y ADECUACION A LA NORMA GE.030 CALIDAD DE LA CONSTRUCCION, EN CONCORDANCIA CON LA PROGRAMACION DE OBRA | C13: Alta Prioridad | D13: Transferir Riesgo | H13: X | I13: *SUPERVISION SOLICITA OPORTUNAMENTE CERTIFICADO DE CALIDAD DE MATERIALES. *SUPERVISION EVALUA Y AUTORIZA OPORTUNAMENTE USO DE EQUIPOS PARA LOS TRABAJOS. *RESIDENTE DE OBRA DIRIGE DE MANERA PERMANENTE PROCESO CONSTRUCTIVO * SUPERVISION NO LIBERA TRABAJOS DEFICIENTES, HASTA QUE EL EJECUTOR A SU COSTO EFECTUA LAS CORRECCIONES, A SATISFACCION DE LA SUPERVISION * LA SUPERVISION EXIGE PERMANENCIA DE RESIDENTE DE OBRA Y ESPECIALISTAS DEL EJECUTOR. * LA SUPERVISION CALIFICA Y AUTORIZA EMPLEO DE MANO DE OBRA. * LA SUPERVISION SIEMPRE AUTORIZA EJECUCION DE PARTIDAS SUCESORAS MEDIANTE ANOTACION EN CUADERNO DE OBRA. | M13: X
A14: VIAS-UNE-006 | B14: RIESGO DE EXCESO DE RUIDO, REMANENTES DE ACERO CORRUGADO FY=4200 KG/CM2 GRADO 60 Y CONTAMINACION DE POLVO AL REALIZAR TRABAJOS DE CAMPO | C14: Prioridad Moderada | D14: Transferir Riesgo | H14: X | I14: *SUPERVISION CONTROLA LA EJECUCION DEL PLAN DE MANEJO AMBIENTAL Y DE SER NECESARIO ADECUA EL PLAN A LAS NECESIDADES REALES. *SUPERVISION CONTROLA EL USO DE LA MAQUINARIAS Y HORARIOS DE TRABAJO. * EJECUTOR A SU COSTO IMPLEMENTA MEDIDAS PARA CONTROLAR LOS IMPACTOS NEGATIVOS PROPIOS DE SUS ACTIVIDADES CONSTRUCTIVAS Y REPARA DAÑOS CAUSADOS AL MEDIO AMBIENTE. | M14: X
A15: VIAS-UNE-007 | B15: RIESGO DE ATRASOS POR DEMORA EN ATENCION DE CONSULTAS SOBRE OCURRENCIAS DE OBRA | C15: Alta Prioridad | D15: Aceptar Riesgo | G15: X | I15: * AREA DE OBRAS EQUIPAMIENTO Y MANTENIMIENTO EVALUA SI CONSULTA DEBE SER ATENDIDA POR LA SUPERVISION Y DE SER EL CASO EXIGE A LA SUPERVISION ATENDER LA CONSULTA. * CONSULTAS SUSTANCIALES SOBRE OCURRENCIAS DE OBRA SON DIRECTAMENTE NOTIFICADAS AL PROYECTISTA O COORDINADOR DE PROYECTO POR EL AREA DE OBRAS EQUIPAMIENTO Y MANTENIMIENTO. *ANTE FALTA DE ATENCION A CONSULTA LA AREA DE ESTUDIOS Y PROYECTOS TOMA ACCIONES PARA ATENCION PRIORITARIA A TRAVES DE ESPECIALISTA TENIENDO EN CUENTA LOS PLAZOS DE LEY. | L15: X
A16: VIAS-UNE-008 | B16: RIESGO DE ACCIDENTES GRAVES Y MUY GRAVES PRODUCTO DE LA EJECUCION DE LA OBRA | C16: Alta Prioridad | D16: Transferir Riesgo | H16: X | I16: *ES OBLIGACION DEL EJECUTOR QUE TODO SU PERSONAL CUENTE CON SEGUROS CONTRA TODO RIESGO (SCTR) * EJECUTOR REALIZA CHARLAS DIARIAS DE INDUCCION *SUPERVISION EXIGE PRESENCIA PERMANENTE DE PREVENCIONISTA DE RIESGO *EJECUTOR IMPLEMENTA PLAN DE CONTINGENCIA EN CASO DE ACCIDENTES EN OBRA * EJECUTOR DISEÑA E IMPLEMENTA UN PLAN DE SEGURIDAD Y SALUD EN EL TRABAJO. * EL EJECUTOR ES RESPONSABLE DE CUBRIR LOS COSTOS POR ACCIDENTES PRODUCTO DE LA EJECUCION DE LA OBRA . * EJECUTOR DEBE CONTRATAR Y PRESENTAR SEGUROS OBLIGATORIOS PARA EL PERSONAL ENCARGADO DE LA CONSTRUCCION Y MANTENERLO VIGENTE DURANTE EL PERIODO DE EJECUCION DE LA OBRA * SUPERVISION SOLICITA, INSPECCIONA Y EXIGE CUMPLIMIENTO DE PLAN DE SEGURIDAD Y SALUD EN EL TRABAJO. * EJECUTOR DISEÑA E IMPLEMENTA UN PLAN DE EMERGENCIA Y PRIMEROS AUXILIOS (ANTE POSIBLE ACCIDENTE DE OBREROS POR TRABAJOS REALIZADOS EN LA EJECUCION DE OBRA). * EJECUTOR CUENTA CON EQUIPOS DE PRIMEROS AUXILIOS Y MOVILIDAD EXCLUSIVA PARA TRASLADO DE PERSONAL OBRERO, TECNICO, PROFESIONAL U OTRAS PERSONAS ACCIDENTADAS PRODUCTO DE LA EJECUCION DE LAS OBRAS, A CENTRO DE SALUD, CLINICA U HOSPITAL. | M16: X
A17: VIAS-UNE-009 | B17: DEFICIENTE GESTION OPERATIVA Y ADMINISTRATIVA DE LA OBRA | C17: Alta Prioridad | D17: Transferir Riesgo | E17: =IF(D17=$E$8,"X"," ") ->  | F17: =IF(D17=$F$8,"X"," ") ->  | G17: =IF(D17=$G$8,"X"," ") ->  | H17: =IF(D17=$H$8,"X"," ") -> X | I17: * EXIGIR AL EJECUTOR LA PRESENCIA DE PERSONAL CLAVE. * EXIGIR USO DE RECURSOS CONSIDERADOS EN EL COSTO DIRECTO E INDIRECTO DE LA OBRA * SUPERVISION EVALUA Y SOLICITA EL CAMBIO DE PERSONAL PROFESIONAL Y TECNICO * SUPERVISION ESTABLECE MECANISMOS DE ASEGURAMIENTO DE CUMPLIMIENTO DE LAS NORMAS TECNICAS DE CALIDAD, SEGURIDAD SALUD Y BUENAS PRACTICAS CONSTRUCTIVAS, SEGUN NORMATIVA VIGENTE. * VERIFICAR A TRAVES DEL SUPERVISOR, LA CORRECTA GESTION OPERATIVA Y ADMINISTRATIVA DE LA OBRA MEDIANTE VISITAS, REUNIONES, ENVIO DE MATERIAL VISUAL U OTROS MECANISMOS QUE PERMITAN CONOCER EL ESTADO SITUACIONAL DE LA OBRA (AVANCE DE OBRA) | L17: =IF(H17=" ","X"," ") ->  | M17: =IF(H17="X","X"," ") -> X
A18: VIAS-UNE-010 | B18: RIESGO DE CONTAMINACION DE SUELO, AIRE Y AGUA | C18: Alta Prioridad | D18: Transferir Riesgo | H18: X | I18: *SUPERVISION CONTROLA LA EJECUCION DEL PLAN DE MANEJO AMBIENTAL Y DE SER NECESARIO ADECUA EL PLAN A LAS NECESIDADES REALES. *SUPERVISION CONTROLA EL USO DE LA MAQUINARIAS Y HORARIOS DE TRABAJO. * EJECUTOR A SU COSTO IMPLEMENTA MEDIDAS PARA CONTROLAR LOS IMPACTOS NEGATIVOS PROPIOS DE SUS ACTIVIDADES CONSTRUCTIVAS Y REPARA DAÑOS CAUSADOS AL MEDIO AMBIENTE. | M18: X
A19: VIAS-UNE-011 | B19: CONCRETO NO CUMPLE CON RESISTENCIA A LA COMPRESION ESPECIFICADA | C19: Alta Prioridad | D19: Transferir Riesgo | H19: X | I19: * SUPERVISION APRUEBA DISEÑO DE MEZCLA DEL EJECUTOR * SUPERVISION DA PASE A VACIADOS DE CONCRETO VIA CUADERNO DE OBRA. * SUPERVISION EXIGE PRESENCIA DE RESISENTE DE OBRA. * CONTROL DE MANO DE OBRA CALIFICADA * SUPERVISION CONTROLA PERIODO Y ADECUADO ALMACENAMIENTO DE CEMENTO Y AGREGADOS. *EL EJECUTOR A SU COSTO REPARA O DEMUELE ELEMENTOS ESTRUCTURALES OBSERVADOS POR LA SUPERVISION. | M19: X
A20: VIAS-UNE-012 | B20: DELINCUENCIA Y/O VANDALISMO | C20: Baja Prioridad | D20: Transferir Riesgo | H20: X | I20: * EJECUTOR CONTRATAR SERVICIOS DE SEGURIDAD Y VIGILANCIA INTERNA Y EXTERNA DE LA OBRA. * EJECUTOR COORDINA CONSTANTEMENTE CON LA POLICIA NACIONAL PARA INCREMENTAR VIGILANCIA. | M20: X
A21: VIAS-UNE-013 | B21: USO DE DEPOSITOS DE MATERIAL EXCEDENTES (DME) NO AUTORIZADOS O PROPIEDAD DE TERCEROS | C21: Prioridad Moderada | D21: Mitigar Riesgo | E21: X | I21: *USO DE DME ALTERNATIVOS PROYECTADOS *SUPERVISION PROPONE DME ALTERNATIVOS CERCANOS AL PROYECTO | L21: X
A22: VIAS-UNE-014 | B22: CAMBIOS EN LA NORMATIVA QUE RESULTE DE APLICACIÓN EN LA EJECUCION DE LA OBRA | C22: Baja Prioridad | D22: Aceptar Riesgo | E22: =IF(D22=$E$8,"X"," ") ->  | G22: X | I22: * IMPLEMENTAR LAS MODIFICACIONES DE LA NORMATIVA QUE SEA APLICABLE A LA EJECUCION DE LA OBRA. * ANALIZAR LOS CAMBIOS PRESENTADOS EN LA NORMATIVA APLICABLE A FIN DE TRASLADAR LAS RESPONSABILIDADES U OBLIGACIONES AL CONTRATISTA, ASI COMO TAMBIEN, DE PRESENTARSE VARIACIONES EN LOS COSTOS, IMPLEMENTAR MEDIDAS COMPENSATORIAS EN EL MARCO DE LA LEY DE CONTRTACIONES DEL ESTADO. | L22: X
A23: VIAS-UNE-015 | B23: DEBIDO A LAS OCURRENCIAS DE DESASTRES NATURALES PODRIA OCURRIR DAÑOS IRREPARABLES EN LA OBRA A EJECUTAR, LO QUE CONLLEVARIA A AFECTAR EL COSTO DEL PROYECTO Y PERDIDAS DE MATERIALES DE CONSTRUCCION Y BIENES | C23: Prioridad Moderada | D23: Transferir Riesgo | E23: =IF(D23=$E$8,"X"," ") ->  | F23: X | G23: =IF(D23=$G$8,"X"," ") ->  | I23: * REALIZAR LA INSPECCION CON ANTICIPACION Y REALIZAR LA VERIFICACION DE LAS ZONAS VULNERABLES QUE PODRIAN CAUSAR LOS DESASTRES NATURALES Y TOMAR PREVENSION A LOS CAUSALES. * EL EJECUTOR DEBE CONSIDERAR EN SU OFERTA ECONOMICA LOS COSTOS PARA ASEGURAR LA OBRA CONTRA DESASTRES NATURALES. * EJECUTOR REPONE DAÑOS SIN QUE LA ENTIDAD REALICE PAGOS ADICIONALES | L23: =IF(H23=" ","X"," ") ->  | M23: X

Sheet Hoja1 (hidden)

Sheet Hoja3 (hidden)
